Workbook

Sheet T (hidden)
A1: Tipo de vehículo | C1: Pregunta | F1: Adquisicion | H1: Editable
A2: Vehículo articulado de carga general de larga distancia | B2: T1 | C2: Si | D2: S | F2: COMPRA
A3: Vehículo articulado de carga general de corta distancia | B3: T2 | C3: No | D3: N | F3: ALQUILER, LEASING…
A4: Portacontenedores de larga distancia | B4: T3
A5: Portacontenedores de corta distancia | B5: T4
A6: Volquete articulado de obra | B6: T5
A7: Vehículo de 2 ejes de carga general | B7: T6
A8: Vehículo articulado de mercancías peligrosas (químicas) de larga distancia | B8: T7
A9: Vehículo articulado de productos derivados del petróleo (gasoil, gasolina, fueloil) | B9: T8
A10: Vehículo cisterna de mercancías peligrosas (gases) de larga distancia | B10: T9
A11: Vehículo frigorífico articulado | B11: T10
A12: Vehículo frigorífico de 2 ejes | B12: T11
A13: Volquete graneles de larga distancia | B13: T12
A14: Volquete graneles de corta distancia | B14: T13
A15: Camión ligero 3T distribución | B15: T14
A16: Furgonetas | B16: T15
A17: Vehículo genérico (para todos aquellos vehículos que no puedan ser englobados en las categorías anteriores) | B17: T16

Sheet DE (hidden)
D1: T1A | E1: T1 | F1: T2A | G1: T2 | H1: T3A | I1: T3 | J1: T4A | K1: T4 | L1: T5A | M1: T5 | N1: T6A | O1: T6 | P1: T7A | Q1: T7 | R1: T8A | S1: T8 | T1: T9A | U1: T9 | V1: T10A | W1: T10 | X1: T11A | Y1: T11 | Z1: T12A | AA1: T12 | AB1: T13A | AC1: T13 | AD1: T14A | AE1: T14 | AF1: T15A | AG1: T15 | AH1: T16A | AI1: T16
B2: Descripción: | E2: Vehículo articulado de carga general de larga distancia | G2: Vehículo articulado de carga general de corta distancia | I2: Portacontenedores de larga distancia | K2: Portacontenedores de corta distancia | M2: Volquete articulado de obra | O2: Vehículo de 2 ejes de carga general | Q2: Vehículo articulado de mercancías peligrosas (químicas) de larga distancia | S2: Vehículo articulado de productos derivados del petróleo (gasoil, gasolina, fueloil) | U2: Vehículo cisterna de mercancías peligrosas (gases) de larga distancia | W2: Vehículo frigorífico articulado | Y2: Vehículo frigorífico de 2 ejes | AA2: Volquete graneles de larga distancia | AC2: Volquete graneles de corta distancia | AE2: Camión ligero 3T distribución | AG2: Furgonetas | AI2: Vehículo genérico (para todos aquellos vehículos que no puedan ser englobados en las categorías anteriores) | AJ2: 22/01/2024
B3: Tipo interes | E3: 0.0534 | G3: 0.0534 | I3: 0.0534 | K3: 0.0534 | M3: 0.0534 | O3: 0.0534 | Q3: 0.0534 | S3: 0.0534 | U3: 0.0534 | W3: 0.0534 | Y3: 0.0534 | AA3: 0.0534 | AC3: 0.0534 | AE3: 0.0534 | AG3: 0.0534 | AI3: 0.0534
B4: Potencia | E4: 455 | G4: 455 | I4: 455 | K4: 455 | M4: 455 | O4: 280 | Q4: 455 | S4: 455 | U4: 455 | W4: 455 | Y4: 280 | AA4: 455 | AC4: 455 | AE4: 130 | AG4: 130 | AI4: 455
B5: MMA | E5: 40000 | G5: 40000 | I5: 44000 | K5: 44000 | M5: 40000 | O5: 18000 | Q5: 40000 | S5: 40000 | U5: 40000 | W5: 40000 | Y5: 18000 | AA5: 40000 | AC5: 40000 | AE5: 35000 | AG5: 3500 | AI5: 40000
B6: Carga útil | E6: 25000 | G6: 25000 | I6: 26250 | K6: 26250 | M6: 23000 | O6: 9500 | Q6: 0 | S6: 0 | U6: 0 | W6: 24000 | Y6: 9000 | AA6: 24000 | AC6: 24000 | AE6: 1500 | AG6: 1500 | AI6: 25000
B7: Número de ejes | E7: 5 | G7: 5 | I7: 6 | K7: 6 | M7: 4 | O7: 2 | Q7: 5 | S7: 5 | U7: 5 | W7: 5 | Y7: 2 | AA7: 5 | AC7: 5 | AE7: 2 | AG7: 2 | AI7: 5
B8: Número de neumáticos | E8: 12 | G8: 12 | I8: 14 | K8: 14 | M8: 14 | O8: 6 | Q8: 12 | S8: 12 | U8: 12 | W8: 12 | Y8: 6 | AA8: 12 | AC8: 12 | AE8: 4 | AG8: 4 | AI8: 12
B9: Kilómetros recorridos anualmente | E9: 150000 | G9: 120000 | I9: 100000 | K9: 100000 | M9: 60000 | O9: 90000 | Q9: 105000 | S9: 100000 | U9: 100000 | W9: 120000 | Y9: 70000 | AA9: 120000 | AC9: 120000 | AE9: 50000 | AG9: 50000 | AI9: 120000
B10: Kilómetros recorridos anualmente en carga (%, km) | D10: 90 | E10: =E9*D10/100 -> 135000 | F10: 85 | G10: =G9*F10/100 -> 102000 | H10: 85 | I10: =I9*H10/100 -> 85000 | J10: 85 | K10: 85000 | L10: 50 | M10: =M9*L10/100 -> 30000 | N10: 80 | O10: =O9*N10/100 -> 72000 | P10: 75 | Q10: =Q9*P10/100 -> 78750 | R10: 50 | S10: =S9*R10/100 -> 50000 | T10: 50 | U10: 50000 | V10: 80 | W10: =W9*V10/100 -> 96000 | X10: 75 | Y10: =Y9*X10/100 -> 52500 | Z10: 80 | AA10: =AA9*Z10/100 -> 96000 | AB10: 80 | AC10: 96000 | AD10: 75 | AE10: =AE9*AD10/100 -> 37500 | AF10: 75 | AG10: =AG9*AF10/100 -> 37500 | AH10: 85 | AI10: =AI9*AH10/100 -> 102000
B11: Kilómetros recorridos anualmente en vacío (%, km) | D11: 10 | E11: =E9*D11/100 -> 15000 | F11: 15 | G11: =G9*F11/100 -> 18000 | H11: 15 | I11: =I9*H11/100 -> 15000 | J11: 15 | K11: =K9*J11/100 -> 15000 | L11: 50 | M11: =M9*L11/100 -> 30000 | N11: 20 | O11: =O9*N11/100 -> 18000 | P11: 25 | Q11: =Q9*P11/100 -> 26250 | R11: 50 | S11: =S9*R11/100 -> 50000 | T11: 50 | U11: =U9*T11/100 -> 50000 | V11: 20 | W11: =W9*V11/100 -> 24000 | X11: 25 | Y11: =Y9*X11/100 -> 17500 | Z11: 20 | AA11: =AA9*Z11/100 -> 24000 | AB11: 20 | AC11: =AC9*AB11/100 -> 24000 | AD11: 25 | AE11: =AE9*AD11/100 -> 12500 | AF11: 25 | AG11: =AG9*AF11/100 -> 12500 | AH11: 15 | AI11: =AI9*AH11/100 -> 18000
B12: Consumo medio (litros/100km) | E12: 35 | G12: 35 | I12: 35 | K12: 35 | M12: 38.5 | O12: 25 | Q12: 34.5 | S12: 34.5 | U12: 34.5 | W12: 35 | Y12: 25 | AA12: 35 | AC12: 35 | AE12: 11.5 | AG12: 11.5 | AI12: 35
B13: Horas trabajadas al año | E13: 2000 | G13: 1800 | I13: 1800 | K13: 1800 | M13: 1800 | O13: 1800 | Q13: 1800 | S13: 1800 | U13: 1800 | W13: 1800 | Y13: 1800 | AA13: 1800 | AC13: 1800 | AE13: 1800 | AG13: 1800 | AI13: 1800
B14: Horas trabajadas al año en carga (%, h) | D14: 90 | E14: =E13*D14/100 -> 1800 | F14: 85 | G14: =G13*F14/100 -> 1530 | H14: 85 | I14: =I13*H14/100 -> 1530 | J14: 85 | K14: 1530 | L14: 50 | M14: =M13*L14/100 -> 900 | N14: 80 | O14: =O13*N14/100 -> 1440 | P14: 75 | Q14: =Q13*P14/100 -> 1350 | R14: 50 | S14: =S13*R14/100 -> 900 | T14: 50 | U14: 900 | V14: 80 | W14: =W13*V14/100 -> 1440 | X14: 75 | Y14: =Y13*X14/100 -> 1350 | Z14: 80 | AA14: =AA13*Z14/100 -> 1440 | AB14: 80 | AC14: 1440 | AD14: 75 | AE14: =AE13*AD14/100 -> 1350 | AF14: 75 | AG14: =AG13*AF14/100 -> 1350 | AH14: 85 | AI14: =AI13*AH14/100 -> 1530
B15: Horas trabajadas al año en vacío (%, h) | D15: 10 | E15: =E13*D15/100 -> 200 | F15: 15 | G15: =G13*F15/100 -> 270 | H15: 15 | I15: =I13*H15/100 -> 270 | J15: 15 | K15: =K13*J15/100 -> 270 | L15: 50 | M15: =M13*L15/100 -> 900 | N15: 20 | O15: =O13*N15/100 -> 360 | P15: 25 | Q15: =Q13*P15/100 -> 450 | R15: 50 | S15: =S13*R15/100 -> 900 | T15: 50 | U15: =U13*T15/100 -> 900 | V15: 20 | W15: =W13*V15/100 -> 360 | X15: 25 | Y15: =Y13*X15/100 -> 450 | Z15: 20 | AA15: =AA13*Z15/100 -> 360 | AB15: 20 | AC15: =AC13*AB15/100 -> 360 | AD15: 25 | AE15: =AE13*AD15/100 -> 450 | AF15: 25 | AG15: =AG13*AF15/100 -> 450 | AH15: 15 | AI15: =AI13*AH15/100 -> 270
B16: Días trabajados al año | E16: 250 | G16: 225 | I16: 225 | K16: 225 | M16: 225 | O16: 225 | Q16: 225 | S16: 225 | U16: 225 | W16: 225 | Y16: 225 | AA16: 225 | AC16: 225 | AE16: 225 | AG16: 225 | AI16: 225
B17: Horas trabajadas por jornada | E17: =E13/E16 -> 8 | G17: =G13/G16 -> 8 | I17: =I13/I16 -> 8 | K17: 8 | M17: =M13/M16 -> 8 | O17: =O13/O16 -> 8 | Q17: =Q13/Q16 -> 8 | S17: =S13/S16 -> 8 | U17: 8 | W17: =W13/W16 -> 8 | Y17: =Y13/Y16 -> 8 | AA17: =AA13/AA16 -> 8 | AC17: 8 | AE17: =AE13/AE16 -> 8 | AG17: =AG13/AG16 -> 8 | AI17: =AI13/AI16 -> 8
B18: Pago de leasing o renta anual (€) | E18: 0 | G18: 0 | I18: 0 | K18: 0 | M18: 0 | O18: 0 | Q18: 0 | S18: 0 | U18: 0 | W18: 0 | Y18: 0 | AA18: 0 | AC18: 0 | AE18: 0 | AG18: 0 | AI18: 0
B19: Precio de tarifa sin IVA (€) | E19: 124387.3 | G19: 124387.3 | I19: 124387.3 | K19: 124387.3 | M19: 124387.3 | O19: 76916.1 | Q19: 124387.3 | S19: 124387.3 | U19: 124387.3 | W19: 124387.3 | Y19: 76916.1 | AA19: 124387.3 | AC19: 124387.3 | AE19: 26034.19 | AG19: 26034.19 | AI19: 124387.3
B20: Descuento sobre tarifa (%) | E20: 10 | G20: 10 | I20: 10 | K20: 10 | M20: 10 | O20: 10 | Q20: 10 | S20: 10 | U20: 10 | W20: 10 | Y20: 10 | AA20: 10 | AC20: 10 | AE20: 10 | AG20: 10 | AI20: 10
B21: Precio de adquisición sin IVA (€) | E21: =ROUND((1-E20/100)*E19,0) -> 111949 | G21: =(1-G20/100)*G19 -> 111949 | I21: =(1-I20/100)*I19 -> 111949 | K21: 111949 | M21: =(1-M20/100)*M19 -> 111949 | O21: =(1-O20/100)*O19 -> 69224 | Q21: =(1-Q20/100)*Q19 -> 111949 | S21: =(1-S20/100)*S19 -> 111949 | U21: 111949 | W21: =(1-W20/100)*W19 -> 111949 | Y21: =(1-Y20/100)*Y19 -> 69224 | AA21: =(1-AA20/100)*AA19 -> 111949 | AC21: 111949 | AE21: =(1-AE20/100)*AE19 -> 23431 | AG21: =(1-AG20/100)*AG19 -> 23431 | AI21: =(1-AI20/100)*AI19 -> 111949
B22: Vida útil (años) | E22: 5 | G22: 6 | I22: 8 | K22: 8 | M22: 8 | O22: 10 | Q22: 6 | S22: 6 | U22: 6 | W22: 6 | Y22: 10 | AA22: 6 | AC22: 6 | AE22: 8 | AG22: 8 | AI22: 6
B23: Valor residual sobre precio de tarifa (%) | D23: 15 | E23: =ROUND(E19*D23/100,0) -> 18658 | F23: 20 | G23: =G19*F23/100 -> 24877 | H23: 20 | I23: =I19*H23/100 -> 24877 | J23: 20 | K23: =K19*J23/100 -> 24877 | L23: 20 | M23: =M19*L23/100 -> 24877 | N23: 10 | O23: =O19*N23/100 -> 7692 | P23: 20 | Q23: =Q19*P23/100 -> 24877 | R23: 20 | S23: =S19*R23/100 -> 24877 | T23: 20 | U23: =U19*T23/100 -> 24877 | V23: 20 | W23: =W19*V23/100 -> 24877 | X23: 10 | Y23: =Y19*X23/100 -> 7692 | Z23: 20 | AA23: =AA19*Z23/100 -> 24877 | AB23: 20 | AC23: =AC19*AB23/100 -> 24877 | AD23: 15 | AE23: =AE19*AD23/100 -> 3905 | AF23: 15 | AG23: =AG19*AF23/100 -> 3905 | AH23: 20 | AI23: =AI19*AH23/100 -> 24877
B24: AMORTIZACIÓN DEL VEHÍCULO DE TRACCIÓN | E24: =IFERROR(ROUND((E21-E23-E90*E94-E91*E95-E92*E96)/E22,0),0) -> 17847 | G24: =IFERROR(ROUND((G21-G23-G90*G94-G91*G95-G92*G96)/G22,0),0) -> 13836 | I24: =IFERROR(ROUND((I21-I23-I90*I94-I91*I95-I92*I96)/I22,0),0) -> 10208 | K24: =IFERROR(ROUND((K21-K23-K90*K94-K91*K95-K92*K96)/K22,0),0) -> 10208 | M24: =IFERROR(ROUND((M21-M23-M90*M94-M91*M95-M92*M96)/M22,0),0) -> 10377 | O24: =IFERROR(ROUND((O21-O23-O90*O94-O91*O95-O92*O96)/O22,0),0) -> 5723 | Q24: =IFERROR(ROUND((Q21-Q23-Q90*Q94-Q91*Q95-Q92*Q96)/Q22,0),0) -> 13836 | S24: =IFERROR(ROUND((S21-S23-S90*S94-S91*S95-S92*S96)/S22,0),0) -> 13836 | U24: =IFERROR(ROUND((U21-U23-U90*U94-U91*U95-U92*U96)/U22,0),0) -> 13836 | W24: =IFERROR(ROUND((W21-W23-W90*W94-W91*W95-W92*W96)/W22,0),0) -> 13836 | Y24: =IFERROR(ROUND((Y21-Y23-Y90*Y94-Y91*Y95-Y92*Y96)/Y22,0),0) -> 5723 | AA24: =IFERROR(ROUND((AA21-AA23-AA90*AA94-AA91*AA95-AA92*AA96)/AA22,0),0) -> 13836 | AC24: =IFERROR(ROUND((AC21-AC23-AC90*AC94-AC91*AC95-AC92*AC96)/AC22,0),0) -> 13836 | AE24: =IFERROR(ROUND((AE21-AE23-AE90*AE94-AE91*AE95-AE92*AE96)/AE22,0),0) -> 2342 | AG24: =IFERROR(ROUND((AG21-AG23-AG90*AG94-AG91*AG95-AG92*AG96)/AG22,0),0) -> 2342 | AI24: =IFERROR(ROUND((AI21-AI23-AI90*AI94-AI91*AI95-AI92*AI96)/AI22,0),0) -> 13836
B25: GASTOS FINANCIEROS DEL VEHÍCULO DE TRACCIÓN | E25: =IFERROR(ROUND((E21-E23-E90*E94-E91*E95-E92*E96)*(E$3/(1-POWER(1+E$3,-E22))-1/E22),0),0) -> 2958 | G25: =IFERROR(ROUND((G21-G23-G90*G94-G91*G95-G92*G96)*(G$3/(1-POWER(1+G$3,-G22))-1/G22),0),0) -> 2698 | I25: =IFERROR(ROUND((I21-I23-I90*I94-I91*I95-I92*I96)*(I$3/(1-POWER(1+I$3,-I22))-1/I22),0),0) -> 2601 | K25: =IFERROR(ROUND((K21-K23-K90*K94-K91*K95-K92*K96)*(K$3/(1-POWER(1+K$3,-K22))-1/K22),0),0) -> 2601 | M25: =IFERROR(ROUND((M21-M23-M90*M94-M91*M95-M92*M96)*(M$3/(1-POWER(1+M$3,-M22))-1/M22),0),0) -> 2644 | O25: =IFERROR(ROUND((O21-O23-O90*O94-O91*O95-O92*O96)*(O$3/(1-POWER(1+O$3,-O22))-1/O22),0),0) -> 1811 | Q25: =IFERROR(ROUND((Q21-Q23-Q90*Q94-Q91*Q95-Q92*Q96)*(Q$3/(1-POWER(1+Q$3,-Q22))-1/Q22),0),0) -> 2698 | S25: =IFERROR(ROUND((S21-S23-S90*S94-S91*S95-S92*S96)*(S$3/(1-POWER(1+S$3,-S22))-1/S22),0),0) -> 2698 | U25: =IFERROR(ROUND((U21-U23-U90*U94-U91*U95-U92*U96)*(U$3/(1-POWER(1+U$3,-U22))-1/U22),0),0) -> 2698 | W25: =IFERROR(ROUND((W21-W23-W90*W94-W91*W95-W92*W96)*(W$3/(1-POWER(1+W$3,-W22))-1/W22),0),0) -> 2698 | Y25: =IFERROR(ROUND((Y21-Y23-Y90*Y94-Y91*Y95-Y92*Y96)*(Y$3/(1-POWER(1+Y$3,-Y22))-1/Y22),0),0) -> 1811 | AA25: =IFERROR(ROUND((AA21-AA23-AA90*AA94-AA91*AA95-AA92*AA96)*(AA$3/(1-POWER(1+AA$3,-AA22))-1/AA22),0),0) -> 2698 | AC25: =IFERROR(ROUND((AC21-AC23-AC90*AC94-AC91*AC95-AC92*AC96)*(AC$3/(1-POWER(1+AC$3,-AC22))-1/AC22),0),0) -> 2698 | AE25: =IFERROR(ROUND((AE21-AE23-AE90*AE94-AE91*AE95-AE92*AE96)*(AE$3/(1-POWER(1+AE$3,-AE22))-1/AE22),0),0) -> 597 | AG25: =IFERROR(ROUND((AG21-AG23-AG90*AG94-AG91*AG95-AG92*AG96)*(AG$3/(1-POWER(1+AG$3,-AG22))-1/AG22),0),0) -> 597 | AI25: =IFERROR(ROUND((AI21-AI23-AI90*AI94-AI91*AI95-AI92*AI96)*(AI$3/(1-POWER(1+AI$3,-AI22))-1/AI22),0),0) -> 2698
B26: Pago de alquiler o leasing anual (€) | O26: 0 | Y26: 0 | AI26: 0
B27: Precio de tarifa sin IVA (€) | O27: 8343.72 | Y27: 42669.75 | AI27: 0
B28: Descuento sobre tarifa (%) | O28: 5 | Y28: 5 | AI28: 0
B29: Precio de adquisición sin IVA (€) | O29: =ROUND((1-O28/100)*O27,0) -> 7927 | Y29: =ROUND((1-Y28/100)*Y27,0) -> 40536 | AI29: 0
B30: Vida útil (años) | O30: 10 | Y30: 10 | AI30: 0
B31: Valor residual sobre precio de tarifa (%) | N31: 10 | O31: =ROUND(O27*N31/100,0) -> 834 | X31: 10 | Y31: =ROUND(Y27*X31/100,0) -> 4267 | AH31: 0 | AI31: 0
B32: AMORTIZACION CARROZADO | O32: =IFERROR(ROUND((O29-O31)/O30,0),0) -> 709 | Y32: =IFERROR(ROUND((Y29-Y31)/Y30,0),0) -> 3627 | AI32: 0
B33: GASTOS FINANCIEROS CARROZADO | O33: =IFERROR(ROUND((O29-O31)*(O$3/(1-POWER(1+O$3,-O30))-1/O30),0),0) -> 224.5 | Y33: =IFERROR(ROUND((Y29-Y31)*(Y$3/(1-POWER(1+Y$3,-Y30))-1/Y30),0),0) -> 1147.97 | AI33: 0
B34: Pago de leasing o renta anual (€) | E34: 0 | G34: 0 | I34: 0 | K34: 0 | M34: 0 | Q34: 0 | S34: 0 | U34: 0 | W34: 0 | AA34: 0 | AC34: 0 | AI34: 0
B35: Precio de tarifa sin IVA (€) | E35: 38675.39 | G35: 38675.39 | I35: 30331.08 | K35: 30331.08 | M35: 34334.03 | Q35: 95236.51 | S35: 95236.51 | U35: 95236.51 | W35: 66653.02 | AA35: 41816.35 | AC35: 41816.35 | AI35: 38675.39
B36: Descuento sobre tarifa (%) | E36: 5 | G36: 5 | I36: 5 | K36: 5 | M36: 5 | Q36: 5 | S36: 5 | U36: 5 | W36: 5 | AA36: 5 | AC36: 5 | AI36: 5
B37: Precio de adquisición sin IVA (€) | E37: =ROUND((1-E36/100)*E35,0) -> 36742 | G37: =ROUND((1-G36/100)*G35,0) -> 36742 | I37: =ROUND((1-I36/100)*I35,0) -> 28815 | K37: =ROUND((1-K36/100)*K35,0) -> 28815 | M37: =ROUND((1-M36/100)*M35,0) -> 32617 | Q37: =ROUND((1-Q36/100)*Q35,0) -> 90475 | S37: =ROUND((1-S36/100)*S35,0) -> 90475 | U37: =ROUND((1-U36/100)*U35,0) -> 90475 | W37: =ROUND((1-W36/100)*W35,0) -> 63320 | AA37: =ROUND((1-AA36/100)*AA35,0) -> 39726 | AC37: =ROUND((1-AC36/100)*AC35,0) -> 39726 | AI37: =ROUND((1-AI36/100)*AI35,0) -> 36742
B38: Vida útil (años) | E38: 7 | G38: 8 | I38: 12 | K38: 12 | M38: 12 | Q38: 8 | S38: 10 | U38: 10 | W38: 10 | AA38: 10 | AC38: 10 | AI38: 8
B39: Valor residual sobre precio de tarifa (%) | D39: 10 | E39: =ROUND(E35*D39/100,0) -> 3868 | F39: 15 | G39: =ROUND(G35*F39/100,0) -> 5801 | H39: 15 | I39: =ROUND(I35*H39/100,0) -> 4550 | J39: 15 | K39: =ROUND(K35*J39/100,0) -> 4550 | L39: 15 | M39: =ROUND(M35*L39/100,0) -> 5150 | P39: 20 | Q39: =ROUND(Q35*P39/100,0) -> 19047 | R39: 15 | S39: =ROUND(S35*R39/100,0) -> 14285 | T39: 15 | U39: =ROUND(U35*T39/100,0) -> 14285 | V39: 15 | W39: =ROUND(W35*V39/100,0) -> 9998 | Z39: 10 | AA39: =ROUND(AA35*Z39/100,0) -> 4182 | AB39: 10 | AC39: =ROUND(AC35*AB39/100,0) -> 4182 | AH39: 15 | AI39: =ROUND(AI35*AH39/100,0) -> 5801
B40: AMORTIZACIÓN REMOLQUE | E40: =IFERROR(ROUND((E37-E39-E93*E97)/E38,0),0) -> 4117 | G40: =IFERROR(ROUND((G37-G39-G93*G97)/G38,0),0) -> 3361 | I40: =IFERROR(ROUND((I37-I39-I93*I97)/I38,0),0) -> 1684 | K40: =IFERROR(ROUND((K37-K39-K93*K97)/K38,0),0) -> 1684 | M40: =IFERROR(ROUND((M37-M39-M93*M97)/M38,0),0) -> 1838 | Q40: =IFERROR(ROUND((Q37-Q39-Q93*Q97)/Q38,0),0) -> 8421 | S40: =IFERROR(ROUND((S37-S39-S93*S97)/S38,0),0) -> 7213 | U40: =IFERROR(ROUND((U37-U39-U93*U97)/U38,0),0) -> 7213 | W40: =IFERROR(ROUND((W37-W39-W93*W97)/W38,0),0) -> 4927 | AA40: =IFERROR(ROUND((AA37-AA39-AA93*AA97)/AA38,0),0) -> 3149 | AC40: =IFERROR(ROUND((AC37-AC39-AC93*AC97)/AC38,0),0) -> 3149 | AI40: =IFERROR(ROUND((AI37-AI39-AI93*AI97)/AI38,0),0) -> 3361
B41: GASTOS FINANCIEROS REMOLQUE | E41: =IFERROR(ROUND((E37-E39-E93*E97)*(E$3/(1-POWER(1+E$3,-E38))-1/E38),0),0) -> 925 | G41: =IFERROR(ROUND((G37-G39-G93*G97)*(G$3/(1-POWER(1+G$3,-G38))-1/G38),0),0) -> 856 | I41: =IFERROR(ROUND((I37-I39-I93*I97)*(I$3/(1-POWER(1+I$3,-I38))-1/I38),0),0) -> 640 | K41: =IFERROR(ROUND((K37-K39-K93*K97)*(K$3/(1-POWER(1+K$3,-K38))-1/K38),0),0) -> 640 | M41: =IFERROR(ROUND((M37-M39-M93*M97)*(M$3/(1-POWER(1+M$3,-M38))-1/M38),0),0) -> 698 | Q41: =IFERROR(ROUND((Q37-Q39-Q93*Q97)*(Q$3/(1-POWER(1+Q$3,-Q38))-1/Q38),0),0) -> 2146 | S41: =IFERROR(ROUND((S37-S39-S93*S97)*(S$3/(1-POWER(1+S$3,-S38))-1/S38),0),0) -> 2283 | U41: =IFERROR(ROUND((U37-U39-U93*U97)*(U$3/(1-POWER(1+U$3,-U38))-1/U38),0),0) -> 2283 | W41: =IFERROR(ROUND((W37-W39-W93*W97)*(W$3/(1-POWER(1+W$3,-W38))-1/W38),0),0) -> 1559 | AA41: =IFERROR(ROUND((AA37-AA39-AA93*AA97)*(AA$3/(1-POWER(1+AA$3,-AA38))-1/AA38),0),0) -> 997 | AC41: =IFERROR(ROUND((AC37-AC39-AC93*AC97)*(AC$3/(1-POWER(1+AC$3,-AC38))-1/AC38),0),0) -> 997 | AI41: =IFERROR(ROUND((AI37-AI39-AI93*AI97)*(AI$3/(1-POWER(1+AI$3,-AI38))-1/AI38),0),0) -> 856
B42: Pago de alquiler o leasing anual (€) | W42: 0 | Y42: 0 | AI42: 0
B43: Precio de tarifa sin IVA (€) | W43: 0 | Y43: 0 | AI43: 0
B44: Descuento sobre tarifa (%) | W44: 0 | Y44: 0 | AI44: 0
B45: Precio de adquisición sin IVA (€) | W45: 0 | Y45: 0 | AI45: 0
B46: Vida útil (años) | W46: 0 | Y46: 0 | AI46: 0
B47: Valor residual sobre precio de tarifa (%) | V47: 0 | W47: 0 | X47: 0 | Y47: 0 | AH47: 0 | AI47: 0
B48: AMORTIZACION EQUIPOS | W48: 0 | Y48: 0 | AI48: 0
B49: GASTOS FINANCIEROS EQUIPOS | W49: 0 | Y49: 0 | AI49: 0
B50: COSTES DE ADQUISICION | E50: =E24+E25+E32+E33+E40+E41+E48+E49 -> 25847 | G50: =G24+G25+G32+G33+G40+G41+G48+G49 -> 20751 | I50: =I24+I25+I32+I33+I40+I41+I48+I49 -> 15133 | K50: 15133 | M50: =M24+M25+M32+M33+M40+M41+M48+M49 -> 15557 | O50: =O24+O25+O32+O33+O40+O41+O48+O49 -> 8467.5 | Q50: =Q24+Q25+Q32+Q33+Q40+Q41+Q48+Q49 -> 27101 | S50: =S24+S25+S32+S33+S40+S41+S48+S49 -> 26030 | U50: 26030 | W50: =W24+W25+W32+W33+W40+W41+W48+W49 -> 23020 | Y50: =Y24+Y25+Y32+Y33+Y40+Y41+Y48+Y49 -> 12308.97 | AA50: =AA24+AA25+AA32+AA33+AA40+AA41+AA48+AA49 -> 20680 | AC50: 20680 | AE50: =AE24+AE25+AE32+AE33+AE40+AE41+AE48+AE49 -> 2939 | AG50: =AG24+AG25+AG32+AG33+AG40+AG41+AG48+AG49 -> 2939 | AI50: =AI24+AI25+AI32+AI33+AI40+AI41+AI48+AI49 -> 20751
B51: Coste total anual del conductor, incluidos costes de empresa (Seg. Soc. y otros) € | E51: 35720.78 | G51: 32180.89 | I51: 32180.89 | K51: 32180.89 | M51: 32180.89 | O51: 32180.89 | Q51: 35398.97 | S51: 35398.97 | U51: 35398.97 | W51: 32180.89 | Y51: 32180.89 | AA51: 32180.89 | AC51: 32180.89 | AE51: 28962.8 | AG51: 28962.8 | AI51: 32180.89
B52: Dieta total diaria del conductor (€/día) | E52: 79.89 | G52: 35.6 | I52: 35.6 | K52: 35.6 | M52: 16.18 | O52: 32.37 | Q52: 35.6 | S52: 35.6 | U52: 35.6 | W52: 35.6 | Y52: 32.37 | AA52: 32.37 | AC52: 32.37 | AE52: 16.18 | AG52: 16.18 | AI52: 35.6
B53: Número de días con dieta al año | E53: 250 | G53: 225 | I53: 200 | K53: 200 | M53: 180 | O53: 133 | Q53: 200 | S53: 200 | U53: 200 | W53: 225 | Y53: 75 | AA53: 200 | AC53: 200 | AE53: 150 | AG53: 150 | AI53: 225
B54: Dietas totales anuales (€) | E54: =E52*E53 -> 19973 | G54: =G52*G53 -> 8010 | I54: =I52*I53 -> 7120 | K54: 7120 | M54: =M52*M53 -> 2912 | O54: =O52*O53 -> 4305 | Q54: =Q52*Q53 -> 7120 | S54: =S52*S53 -> 7120 | U54: 7120 | W54: =W52*W53 -> 8010 | Y54: =Y52*Y53 -> 2428 | AA54: =AA52*AA53 -> 6474 | AC54: 6474 | AE54: =AE52*AE53 -> 2427 | AG54: =AG52*AG53 -> 2427 | AI54: =AI52*AI53 -> 8010
B55: Plus anual de actividad del conductor (€/km) | E55: 0.06 | G55: 0.06 | I55: 0.06 | K55: 0.06 | M55: 0.06 | O55: 0.06 | Q55: 0.09 | S55: 0.09 | U55: 0.09 | W55: 0.06 | Y55: 0.06 | AA55: 0.06 | AC55: 0.06 | AE55: 0.06 | AG55: 0.06 | AI55: 0.06
B56: Plus anual de actividad del conductor (€) | E56: =E55*E9 -> 9000 | G56: =G55*G9 -> 7200 | I56: =I55*I9 -> 6000 | K56: 6000 | M56: =M55*M9 -> 3600 | O56: =O55*O9 -> 5400 | Q56: =Q55*Q9 -> 9450 | S56: =S55*S9 -> 9000 | U56: 9000 | W56: =W55*W9 -> 7200 | Y56: =Y55*Y9 -> 4200 | AA56: =AA55*AA9 -> 7200 | AC56: 7200 | AE56: =AE55*AE9 -> 3000 | AG56: =AG55*AG9 -> 3000 | AI56: =AI55*AI9 -> 7200
B57: COSTES DE PERSONAL | E57: =E51+E54+E56 -> 64693.78 | G57: =G51+G54+G56 -> 47390.89 | I57: =I51+I54+I56 -> 45300.89 | K57: 45300.89 | M57: =M51+M54+M56 -> 38692.89 | O57: =O51+O54+O56 -> 41885.89 | Q57: =Q51+Q54+Q56 -> 51968.97 | S57: =S51+S54+S56 -> 51518.97 | U57: 51518.97 | W57: =W51+W54+W56 -> 47390.89 | Y57: =Y51+Y54+Y56 -> 38808.89 | AA57: =AA51+AA54+AA56 -> 45854.89 | AC57: 45854.89 | AE57: =AE51+AE54+AE56 -> 34389.8 | AG57: =AG51+AG54+AG56 -> 34389.8 | AI57: =AI51+AI54+AI56 -> 47390.89
B58: Responsabilidad civil del vehículo de tracción (€) | E58: 1593.3 | G58: 1593.3 | I58: 1593.3 | K58: 1593.3 | M58: 1593.3 | O58: 1651.51 | Q58: 1593.3 | S58: 1593.3 | U58: 1593.3 | W58: 1593.3 | Y58: 1651.51 | AA58: 1593.3 | AC58: 1593.3 | AE58: 1115.55 | AG58: 115.55 | AI58: 1593.3
B59: Responsabilidad civil del remolque o semirremolque (€) | E59: 502.65 | G59: 502.65 | I59: 502.65 | K59: 502.65 | M59: 502.65 | Q59: 502.65 | S59: 502.65 | U59: 502.65 | W59: 502.65 | AA59: 502.65 | AC59: 502.65 | AI59: 502.65
B60: Responsabilidad civil de la mercancía (€) | E60: 119.43 | G60: 119.43 | I60: 119.43 | K60: 119.43 | M60: 119.43 | O60: 119.43 | Q60: 630.35 | S60: 998.83 | U60: 998.83 | W60: 139.53 | Y60: 119.43 | AA60: 119.43 | AC60: 119.43 | AI60: 119.43
B61: Seguro de accidentes de personal de a bordo (€) | E61: 55.43 | G61: 55.43 | I61: 55.43 | K61: 55.43 | M61: 55.43 | O61: 55.43 | Q61: 55.43 | S61: 55.43 | U61: 55.43 | W61: 55.43 | Y61: 55.43 | AA61: 55.43 | AC61: 55.43 | AE61: 55.43 | AG61: 55.43 | AI61: 55.43
B62: Retirada del carné de conducir (€) | E62: 137.99 | G62: 137.99 | I62: 137.99 | K62: 137.99 | M62: 137.99 | O62: 137.99 | Q62: 137.99 | S62: 137.99 | U62: 137.99 | W62: 137.99 | Y62: 137.99 | AA62: 137.99 | AC62: 137.99 | AE62: 137.99 | AG62: 137.99 | AI62: 137.99
B63: Seguro de la mercancía (€) | E63: 676.06 | G63: 676.06 | I63: 367.45 | K63: 367.45 | M63: 0 | O63: 403.6 | Q63: 676.06 | S63: 676.06 | U63: 676.06 | W63: 974.94 | Y63: 825.43 | AA63: 337.32 | AC63: 337.32 | AE63: 247 | AG63: 247 | AI63: 676.06
B64: Daños propios (seguro todo riesgo) (€) | E64: 2977.9 | G64: 2977.9 | I64: 2977.9 | K64: 2977.9 | M64: 3140.13 | O64: 1343.96 | Q64: 3577.65 | S64: 3577.65 | U64: 3577.65 | W64: 3878.79 | Y64: 1669.15 | AA64: 2977.9 | AC64: 2977.9 | AE64: 1869.85 | AG64: 1869.85 | AI64: 2977.9
B65: Otros seguros (€) | E65: 477.2 | G65: 477.2 | I65: 477.2 | K65: 477.2 | M65: 500.1 | O65: 477.2 | Q65: 477.2 | S65: 477.2 | U65: 477.2 | W65: 477.2 | Y65: 477.2 | AA65: 477.2 | AC65: 477.2 | AE65: 226.56 | AG65: 226.56 | AI65: 477.2
B66: COSTE TOTAL ANUAL DE LOS SEGUROS (€) | E66: =SUM(E58:E65) -> 6539.96 | G66: =SUM(G58:G65) -> 6539.96 | I66: =SUM(I58:I65) -> 6231.35 | K66: 6231.35 | M66: =SUM(M58:M65) -> 6049.03 | O66: =SUM(O58:O65) -> 4189.12 | Q66: =SUM(Q58:Q65) -> 7650.63 | S66: =SUM(S58:S65) -> 8019.11 | U66: 8019.11 | W66: =SUM(W58:W65) -> 7759.83 | Y66: =SUM(Y58:Y65) -> 4936.14 | AA66: =SUM(AA58:AA65) -> 6201.22 | AC66: 6201.22 | AE66: =SUM(AE58:AE65) -> 3652.38 | AG66: 2652.38 | AI66: =SUM(AI58:AI65) -> 6539.96
B67: Visados | E67: 16.34 | G67: 16.34 | I67: 16.34 | K67: 16.34 | M67: 16.34 | O67: 16.34 | Q67: 16.34 | S67: 16.34 | U67: 16.34 | W67: 16.34 | Y67: 16.34 | AA67: 16.34 | AC67: 16.34 | AE67: 15.68 | AG67: 15.68 | AI67: 16.34
B68: Inspección técnica de vehículos (I.T.V.) (€) | E68: 111.92 | G68: 111.92 | I68: 111.92 | K68: 111.92 | M68: 111.92 | O68: 68.09 | Q68: 111.92 | S68: 111.92 | U68: 111.92 | W68: 111.92 | Y68: 68.09 | AA68: 111.92 | AC68: 111.92 | AE68: 51.44 | AG68: 51.44 | AI68: 111.92
B69: Impuesto de actividades económicas (I.A.E.) repercutible a este vehículo (€) | E69: 354.07 | G69: 354.07 | I69: 354.07 | K69: 354.07 | M69: 354.07 | O69: 354.07 | Q69: 354.07 | S69: 354.07 | U69: 354.07 | W69: 354.07 | Y69: 354.07 | AA69: 354.07 | AC69: 354.07 | AE69: 290.22 | AG69: 290.22 | AI69: 354.07
B70: Impuesto de Vehículos de Tracción Mecánica (I.T.V.M.) (€) | E70: 304.82 | G70: 304.82 | I70: 304.82 | K70: 304.82 | M70: 304.82 | O70: 217.06 | Q70: 304.82 | S70: 304.82 | U70: 304.82 | W70: 304.82 | Y70: 217.06 | AA70: 304.82 | AC70: 304.82 | AE70: 152.4 | AG70: 152.4 | AI70: 304.82
B71: Revisión tacógrafo (€) | E71: 82.34 | G71: 82.34 | I71: 82.34 | K71: 82.34 | M71: 82.34 | O71: 82.34 | Q71: 82.34 | S71: 82.34 | U71: 82.34 | W71: 82.34 | Y71: 82.34 | AA71: 82.34 | AC71: 82.34 | AE71: 82.34 | AI71: 82.34
B72: Inspecciones A.T.P. (transporte mercancías perecederas) | W72: 75.8 | Y72: 75.8 | AI72: 0
B73: Inspecciones A.D.R. (transporte mercancías peligrosas) | Q73: 130.68 | S73: 692.64 | U73: 692.64 | AI73: 0
B74: Otros costes fiscales (€) | E74: 28.75 | G74: 0 | I74: 0 | K74: 0 | M74: 0 | O74: 0 | Q74: 0 | S74: 0 | U74: 0 | W74: 0 | Y74: 0 | AA74: 0 | AC74: 0 | AE74: 0 | AG74: 0 | AI74: 0
B75: COSTE FISCAL TOTAL ANUAL | E75: =SUM(E67:E74) -> 898.24 | G75: =SUM(G67:G74) -> 869.49 | I75: =SUM(I67:I74) -> 869.49 | K75: 869.49 | M75: =SUM(M67:M74) -> 869.49 | O75: =SUM(O67:O74) -> 737.9 | Q75: =SUM(Q67:Q74) -> 1000.17 | S75: =SUM(S67:S74) -> 1562.13 | U75: 1562.13 | W75: =SUM(W67:W74) -> 945.29 | Y75: =SUM(Y67:Y74) -> 813.7 | AA75: =SUM(AA67:AA74) -> 869.49 | AC75: 869.49 | AE75: =SUM(AE67:AE74) -> 592.08 | AG75: =SUM(AG67:AG74) -> 509.74 | AI75: =SUM(AI67:AI74) -> 869.49
B76: SEGUROS Y COSTES FISCALES | E76: =E66+E75 -> 7438.2 | G76: =G66+G75 -> 7409.45 | I76: =I66+I75 -> 7100.84 | K76: 7100.84 | M76: =M66+M75 -> 6918.52 | O76: =O66+O75 -> 4927.02 | Q76: =Q66+Q75 -> 8650.8 | S76: =S66+S75 -> 9581.24 | U76: 9581.24 | W76: =W66+W75 -> 8705.12 | Y76: =Y66+Y75 -> 5749.84 | AA76: =AA66+AA75 -> 7070.71 | AC76: 7070.71 | AE76: =AE66+AE75 -> 4244.46 | AG76: =AG66+AG75 -> 3162.12 | AI76: =AI66+AI75 -> 7409.45
B77: Precio del carburante, con IVA (€/litro) | E77: 1.6877 | G77: 1.6877 | I77: 1.6877 | K77: 1.6877 | M77: 1.6877 | O77: 1.6877 | Q77: 1.6877 | S77: 1.6877 | U77: 1.6877 | W77: 1.6877 | Y77: 1.6877 | AA77: 1.6877 | AC77: 1.6877 | AE77: 1.6877 | AG77: 1.6877 | AI77: 1.6877
B78: Descuento (%, €/litro) | D78: 6.73 | E78: =ROUND(E77*D78/100,4) -> 0.11 | F78: 6.73 | G78: =ROUND(G77*F78/100,4) -> 0.11 | H78: 6.73 | I78: =ROUND(I77*H78/100,4) -> 0.11 | J78: 6.73 | K78: =ROUND(K77*J78/100,4) -> 0.11 | L78: 6.73 | M78: =ROUND(M77*L78/100,4) -> 0.11 | N78: 6.73 | O78: =ROUND(O77*N78/100,4) -> 0.11 | P78: 6.73 | Q78: =ROUND(Q77*P78/100,4) -> 0.11 | R78: 6.73 | S78: =ROUND(S77*R78/100,4) -> 0.11 | T78: 6.73 | U78: =ROUND(U77*T78/100,4) -> 0.11 | V78: 6.73 | W78: =ROUND(W77*V78/100,4) -> 0.11 | X78: 6.73 | Y78: =ROUND(Y77*X78/100,4) -> 0.11 | Z78: 6.73 | AA78: =ROUND(AA77*Z78/100,4) -> 0.11 | AB78: 6.73 | AC78: =ROUND(AC77*AB78/100,4) -> 0.11 | AD78: 3.83 | AE78: =ROUND(AE77*AD78/100,4) -> 0.06 | AF78: 3.83 | AG78: =ROUND(AG77*AF78/100,4) -> 0.06 | AH78: 6.73 | AI78: =ROUND(AI77*AH78/100,4) -> 0.11
B79: IVA aplicado al carburante (%)(€/litro) | D79: 21 | E79: =ROUND((D79/100)*(E77-E78)/(1+D79/100),2) -> 0.27 | F79: 21 | G79: =ROUND((F79/100)*(G77-G78)/(1+F79/100),2) -> 0.27 | H79: 21 | I79: =ROUND((H79/100)*(I77-I78)/(1+H79/100),2) -> 0.27 | J79: 21 | K79: =ROUND((J79/100)*(K77-K78)/(1+J79/100),2) -> 0.27 | L79: 21 | M79: =ROUND((L79/100)*(M77-M78)/(1+L79/100),2) -> 0.27 | N79: 21 | O79: =ROUND((N79/100)*(O77-O78)/(1+N79/100),2) -> 0.27 | P79: 21 | Q79: =ROUND((P79/100)*(Q77-Q78)/(1+P79/100),2) -> 0.27 | R79: 21 | S79: =ROUND((R79/100)*(S77-S78)/(1+R79/100),2) -> 0.27 | T79: 21 | U79: =ROUND((T79/100)*(U77-U78)/(1+T79/100),2) -> 0.27 | V79: 21 | W79: =ROUND((V79/100)*(W77-W78)/(1+V79/100),2) -> 0.27 | X79: 21 | Y79: =ROUND((X79/100)*(Y77-Y78)/(1+X79/100),2) -> 0.27 | Z79: 21 | AA79: =ROUND((Z79/100)*(AA77-AA78)/(1+Z79/100),2) -> 0.27 | AB79: 21 | AC79: =ROUND((AB79/100)*(AC77-AC78)/(1+AB79/100),2) -> 0.27 | AD79: 21 | AE79: =ROUND((AD79/100)*(AE77-AE78)/(1+AD79/100),2) -> 0.28 | AF79: 21 | AG79: =ROUND((AF79/100)*(AG77-AG78)/(1+AF79/100),2) -> 0.28 | AH79: 21 | AI79: =ROUND((AH79/100)*(AI77-AI78)/(1+AH79/100),2) -> 0.27
B80: Precio carburante sin IVA (€/litro) | E80: =ROUND((E77-E78)/(1+D79/100),2) -> 1.3 | G80: =ROUND((G77-G78)/(1+F79/100),2) -> 1.3 | I80: =ROUND((I77-I78)/(1+H79/100),2) -> 1.3 | K80: =ROUND((K77-K78)/(1+J79/100),2) -> 1.3 | M80: =ROUND((M77-M78)/(1+L79/100),2) -> 1.3 | O80: =ROUND((O77-O78)/(1+N79/100),2) -> 1.3 | Q80: =ROUND((Q77-Q78)/(1+P79/100),2) -> 1.3 | S80: =ROUND((S77-S78)/(1+R79/100),2) -> 1.3 | U80: =ROUND((U77-U78)/(1+T79/100),2) -> 1.3 | W80: =ROUND((W77-W78)/(1+V79/100),2) -> 1.3 | Y80: =ROUND((Y77-Y78)/(1+X79/100),2) -> 1.3 | AA80: =ROUND((AA77-AA78)/(1+Z79/100),2) -> 1.3 | AC80: =ROUND((AC77-AC78)/(1+AB79/100),2) -> 1.3 | AE80: =ROUND((AE77-AE78)/(1+AD79/100),2) -> 1.35 | AG80: =ROUND((AG77-AG78)/(1+AF79/100),2) -> 1.35 | AI80: =ROUND((AI77-AI78)/(1+AH79/100),2) -> 1.3
B81: GASTO TOTAL ANUAL EN CARBURANTE DEL VEHÍCULO (€, SIN IVA) | E81: =ROUND(E9/100*E12*E80,0) -> 68250 | G81: =ROUND(G9/100*G12*G80,0) -> 54600 | I81: =ROUND(I9/100*I12*I80,0) -> 45500 | K81: =ROUND(K9/100*K12*K80,0) -> 45500 | M81: =ROUND(M9/100*M12*M80,0) -> 30030 | O81: =ROUND(O9/100*O12*O80,0) -> 29250 | Q81: =ROUND(Q9/100*Q12*Q80,0) -> 47093 | S81: =ROUND(S9/100*S12*S80,0) -> 44850 | U81: =ROUND(U9/100*U12*U80,0) -> 44850 | W81: =ROUND(W9/100*W12*W80,0) -> 54600 | Y81: =ROUND(Y9/100*Y12*Y80,0) -> 22750 | AA81: =ROUND(AA9/100*AA12*AA80,0) -> 54600 | AC81: =ROUND(AC9/100*AC12*AC80,0) -> 54600 | AE81: =ROUND(AE9/100*AE12*AE80,0) -> 7763 | AG81: =ROUND(AG9/100*AG12*AG80,0) -> 7763 | AI81: =ROUND(AI9/100*AI12*AI80,0) -> 54600
B82: Precio de compra de carburante | W82: 1.2584 | Y82: 1.2584 | AI82: 0
B83: Descuento (%, €) | V83: 0 | W83: 0 | X83: 0 | Y83: 0 | AH83: 0 | AI83: 0
B84: IVA aplicado al carburante (%) | W84: 21 | Y84: 21 | AI84: 21
B85: IVA aplicado al carburante (€/litro) | W85: =(W84/100)*(W82-W83)/(1+W84/100) -> 0.22 | Y85: =(Y84/100)*(Y82-Y83)/(1+Y84/100) -> 0.22 | AI85: 0
B86: Precio carburante sin IVA (€/litro) | W86: =(W82-W83)/(1+W84/100) -> 1.04 | Y86: =(Y82-Y83)/(1+Y84/100) -> 1.04 | AI86: 0
B87: Consumo medio de los equipos (litros/hora) | W87: 4 | Y87: 3 | AI87: 0
B88: Horas anuales de utilización de los equipos | W88: 2000 | Y88: 2000 | AI88: 0
B89: GASTO TOTAL ANUAL EN CARBURANTE EQUIPOS | W89: =W86*W87*W88 -> 8320 | Y89: =Y86*Y87*Y88 -> 6240 | AI89: 0
B90: Número de neumáticos direccionables | E90: 2 | G90: 2 | I90: 2 | K90: 2 | M90: 2 | O90: 2 | Q90: 2 | S90: 2 | U90: 2 | W90: 2 | Y90: 2 | AA90: 2 | AC90: 2 | AE90: 2 | AG90: 2 | AI90: 2
B91: Número de neumáticos motrices | E91: 4 | G91: 4 | I91: 4 | K91: 4 | M91: 4 | O91: 4 | Q91: 4 | S91: 4 | U91: 4 | W91: 4 | Y91: 4 | AA91: 4 | AC91: 4 | AE91: 2 | AG91: 2 | AI91: 4
B92: Número de neumáticos arrastre | I92: 2 | K92: 2 | AI92: 0
B93: Número de neumáticos semirremolque o remolque | E93: 6 | G93: 6 | I93: 6 | K93: 6 | M93: 8 | Q93: 6 | S93: 6 | U93: 6 | W93: 6 | AA93: 6 | AC93: 6 | AI93: 6
B94: Precio sin IVA de un neumático direccionable (€) | E94: 676.14 | G94: 676.14 | I94: 676.14 | K94: 676.14 | M94: 676.14 | O94: 716.91 | Q94: 676.14 | S94: 676.14 | U94: 676.14 | W94: 676.14 | Y94: 716.91 | AA94: 676.14 | AC94: 676.14 | AE94: 196.8 | AG94: 196.8 | AI94: 676.14
B95: Precio sin IVA de un neumático motriz (€) | E95: 676.14 | G95: 676.14 | I95: 676.14 | K95: 676.14 | M95: 676.14 | O95: 716.91 | Q95: 676.14 | S95: 676.14 | U95: 676.14 | W95: 676.14 | Y95: 716.91 | AA95: 676.14 | AC95: 676.14 | AE95: 196.8 | AG95: 196.8 | AI95: 676.14
B96: Precio sin IVA de un neumático arrastre (€) | I96: 676.14 | K96: 676.14 | AI96: 676.14
B97: Precio sin IVA de un neumático remolque-semirremolque (€) | E97: 676.14 | G97: 676.14 | I97: 676.14 | K97: 676.14 | M97: 676.14 | Q97: 676.14 | S97: 676.14 | U97: 676.14 | W97: 676.14 | AA97: 676.14 | AC97: 676.14 | AI97: 676.14
B98: Duración media de un neumático direccionable (km) | E98: 150000 | G98: 150000 | I98: 150000 | K98: 150000 | M98: 50000 | O98: 125000 | Q98: 150000 | S98: 150000 | U98: 150000 | W98: 150000 | Y98: 125000 | AA98: 150000 | AC98: 150000 | AE98: 60000 | AG98: 60000 | AI98: 150000
B99: Duración media de un neumático motriz (km) | E99: 150000 | G99: 150000 | I99: 150000 | K99: 150000 | M99: 50000 | O99: 125000 | Q99: 150000 | S99: 150000 | U99: 150000 | W99: 150000 | Y99: 125000 | AA99: 150000 | AC99: 150000 | AE99: 60000 | AG99: 60000 | AI99: 150000
B100: Duración media de un neumático arrastre (km) | I100: 150000 | K100: 150000 | AI100: 150000
B101: Duración media de un neumático remolque-semirremolque (km) | E101: 150000 | G101: 150000 | I101: 150000 | K101: 150000 | M101: 50000 | Q101: 150000 | S101: 150000 | U101: 150000 | W101: 150000 | AA101: 150000 | AC101: 150000 | AI101: 150000
B102: GASTO TOTAL ANUAL EN NEUMATICOS (€, SIN IVA) | E102: =ROUND(IFERROR(E90*E94*E9/E98,0)+IFERROR(E91*E95*E9/E99,0)+IFERROR(E92*E96*E9/E100,0)+IFERROR(E93*E97*E9/E101,0),0) -> 8113.68 | G102: =ROUND(IFERROR(G90*G94*G9/G98,0)+IFERROR(G91*G95*G9/G99,0)+IFERROR(G92*G96*G9/G100,0)+IFERROR(G93*G97*G9/G101,0),0) -> 6490.94 | I102: =ROUND(IFERROR(I90*I94*I9/I98,0)+IFERROR(I91*I95*I9/I99,0)+IFERROR(I92*I96*I9/I100,0)+IFERROR(I93*I97*I9/I101,0),0) -> 6310.64 | K102: =ROUND(IFERROR(K90*K94*K9/K98,0)+IFERROR(K91*K95*K9/K99,0)+IFERROR(K92*K96*K9/K100,0)+IFERROR(K93*K97*K9/K101,0),0) -> 6310.64 | M102: =ROUND(IFERROR(M90*M94*M9/M98,0)+IFERROR(M91*M95*M9/M99,0)+IFERROR(M92*M96*M9/M100,0)+IFERROR(M93*M97*M9/M101,0),0) -> 11359.15 | O102: =ROUND(IFERROR(O90*O94*O9/O98,0)+IFERROR(O91*O95*O9/O99,0)+IFERROR(O92*O96*O9/O100,0)+IFERROR(O93*O97*O9/O101,0),0) -> 3097.05 | Q102: =ROUND(IFERROR(Q90*Q94*Q9/Q98,0)+IFERROR(Q91*Q95*Q9/Q99,0)+IFERROR(Q92*Q96*Q9/Q100,0)+IFERROR(Q93*Q97*Q9/Q101,0),0) -> 5679.58 | S102: =ROUND(IFERROR(S90*S94*S9/S98,0)+IFERROR(S91*S95*S9/S99,0)+IFERROR(S92*S96*S9/S100,0)+IFERROR(S93*S97*S9/S101,0),0) -> 5409.12 | U102: =ROUND(IFERROR(U90*U94*U9/U98,0)+IFERROR(U91*U95*U9/U99,0)+IFERROR(U92*U96*U9/U100,0)+IFERROR(U93*U97*U9/U101,0),0) -> 5409.12 | W102: =ROUND(IFERROR(W90*W94*W9/W98,0)+IFERROR(W91*W95*W9/W99,0)+IFERROR(W92*W96*W9/W100,0)+IFERROR(W93*W97*W9/W101,0),0) -> 6490.94 | Y102: =ROUND(IFERROR(Y90*Y94*Y9/Y98,0)+IFERROR(Y91*Y95*Y9/Y99,0)+IFERROR(Y92*Y96*Y9/Y100,0)+IFERROR(Y93*Y97*Y9/Y101,0),0) -> 2408.82 | AA102: =ROUND(IFERROR(AA90*AA94*AA9/AA98,0)+IFERROR(AA91*AA95*AA9/AA99,0)+IFERROR(AA92*AA96*AA9/AA100,0)+IFERROR(AA93*AA97*AA9/AA101,0),0) -> 6490.94 | AC102: =ROUND(IFERROR(AC90*AC94*AC9/AC98,0)+IFERROR(AC91*AC95*AC9/AC99,0)+IFERROR(AC92*AC96*AC9/AC100,0)+IFERROR(AC93*AC97*AC9/AC101,0),0) -> 6490.94 | AE102: =ROUND(IFERROR(AE90*AE94*AE9/AE98,0)+IFERROR(AE91*AE95*AE9/AE99,0)+IFERROR(AE92*AE96*AE9/AE100,0)+IFERROR(AE93*AE97*AE9/AE101,0),0) -> 656 | AG102: =ROUND(IFERROR(AG90*AG94*AG9/AG98,0)+IFERROR(AG91*AG95*AG9/AG99,0)+IFERROR(AG92*AG96*AG9/AG100,0)+IFERROR(AG93*AG97*AG9/AG101,0),0) -> 656 | AI102: =ROUND(IFERROR(AI90*AI94*AI9/AI98,0)+IFERROR(AI91*AI95*AI9/AI99,0)+IFERROR(AI92*AI96*AI9/AI100,0)+IFERROR(AI93*AI97*AI9/AI101,0),0) -> 6490.94
B103: Coste de mantenimiento por km, sin IVA (€/km) | E103: 0.0172 | G103: 0.0172 | I103: 0.0206 | K103: 0.0206 | M103: 0.0696 | O103: 0.0204 | Q103: 0.0556 | S103: 0.0556 | U103: 0.0556 | W103: 0.0204 | Y103: 0.0271 | AA103: 0.0172 | AC103: 0.0172 | AE103: 0.0098 | AG103: 0.098 | AI103: 0.0172
B104: GASTO ANUAL EN MANTENIMIENTO, SIN IVA (€) | E104: =E103*E9 -> 2580 | G104: =G103*G9 -> 2064 | I104: =I103*I9 -> 2060 | K104: 2060 | M104: =M103*M9 -> 4176 | O104: =O103*O9 -> 1836 | Q104: =Q103*Q9 -> 5838 | S104: =S103*S9 -> 5560 | U104: 5560 | W104: =W103*W9 -> 2448 | Y104: =Y103*Y9 -> 1897 | AA104: =AA103*AA9 -> 2064 | AC104: 2064 | AE104: =AE103*AE9 -> 490 | AG104: =AG103*AG9 -> 4900 | AI104: =AI103*AI9 -> 2064
B105: Coste de reparaciones por km, sin IVA (€/km) | E105: 0.0339 | G105: 0.0339 | I105: 0.0339 | K105: 0.0339 | M105: 0.0436 | O105: 0.0271 | Q105: 0.0428 | S105: 0.0428 | U105: 0.0428 | W105: 0.0428 | Y105: 0.0339 | AA105: 0.0339 | AC105: 0.0339 | AE105: 0.0174 | AG105: 0.0174 | AI105: 0.0339
B106: GASTO ANUAL EN REPARACIONES, SIN IVA (€) | E106: =E105*E9 -> 5085 | G106: =G105*G9 -> 4068 | I106: =I105*I9 -> 3390 | K106: 3390 | M106: =M105*M9 -> 2616 | O106: =O105*O9 -> 2439 | Q106: =Q105*Q9 -> 4494 | S106: =S105*S9 -> 4280 | U106: 4280 | W106: =W105*W9 -> 5136 | Y106: =Y105*Y9 -> 2373 | AA106: =AA105*AA9 -> 4068 | AC106: 4068 | AE106: =AE105*AE9 -> 870 | AG106: =AG105*AG9 -> 870 | AI106: =AI105*AI9 -> 4068
B107: GASTO ANUAL EN PEAJES, SIN IVA (€) | E107: 17642.53 | G107: 2195.51 | I107: 1829.6 | K107: 1829.6 | M107: 0 | O107: 1411.41 | Q107: 9605.39 | S107: 9147.98 | U107: 9147.98 | W107: 2195.51 | Y107: 1097.76 | AA107: 2195.51 | AC107: 2195.51 | AE107: 0 | AG107: 0 | AI107: 2195.51
B108: COSTES VARIABLES | E108: =ROUND(E81+E89+E102+E104+E106+E107,0) -> 101671.21 | G108: =ROUND(G81+G89+G102+G104+G106+G107,0) -> 69418.45 | I108: =ROUND(I81+I89+I102+I104+I106+I107,0) -> 59090.24 | K108: =ROUND(K81+K89+K102+K104+K106+K107,0) -> 59090.24 | M108: =ROUND(M81+M89+M102+M104+M106+M107,0) -> 48181.15 | O108: =ROUND(O81+O89+O102+O104+O106+O107,0) -> 38033.46 | Q108: =ROUND(Q81+Q89+Q102+Q104+Q106+Q107,0) -> 72709.97 | S108: =ROUND(S81+S89+S102+S104+S106+S107,0) -> 69247.1 | U108: =ROUND(U81+U89+U102+U104+U106+U107,0) -> 69247.1 | W108: =ROUND(W81+W89+W102+W104+W106+W107,0) -> 79190.45 | Y108: =ROUND(Y81+Y89+Y102+Y104+Y106+Y107,0) -> 36766.58 | AA108: =ROUND(AA81+AA89+AA102+AA104+AA106+AA107,0) -> 69418.45 | AC108: =ROUND(AC81+AC89+AC102+AC104+AC106+AC107,0) -> 69418.45 | AE108: =ROUND(AE81+AE89+AE102+AE104+AE106+AE107,0) -> 9779 | AG108: =ROUND(AG81+AG89+AG102+AG104+AG106+AG107,0) -> 14189 | AI108: =ROUND(AI81+AI89+AI102+AI104+AI106+AI107,0) -> 69418.45
B109: Coste anual estructura(gestión, administración,) repercutible a este vehículo | E109: =E$112/3 -> 4328.33 | G109: =G$112/3 -> 3143.09 | I109: =I$112/3 -> 2745.27 | K109: =K$112/3 -> 2745.27 | M109: =M$112/3 -> 2370.18 | O109: =O$112/3 -> 2023.23 | Q109: =Q$112/3 -> 3357.7 | S109: =S$112/3 -> 3381.9 | U109: =U$112/3 -> 3381.9 | W109: =W$112/3 -> 3431.62 | Y109: =Y$112/3 -> 2029.95 | AA109: =AA$112/3 -> 3101.02 | AC109: 3101.02 | AE109: =AE$112/3 -> 1112.93 | AG109: 1112.93 | AI109: =AI$112/3 -> 3143.09
B110: Coste anual comercialización repercutible a este vehículo | E110: =E$112/3 -> 4328.33 | G110: 3143.09 | I110: 2745.27 | K110: 2745.27 | M110: 2370.18 | O110: 2023.23 | Q110: 3357.7 | S110: 3381.9 | U110: 3381.9 | W110: 3431.62 | Y110: 2029.95 | AA110: 3101.02 | AC110: 3101.02 | AE110: 1112.93 | AG110: 1112.93 | AI110: 3143.09
B111: Otros costes indirectos anuales repercutibles a este vehículo | E111: 4328.33 | G111: 3143.09 | I111: 2745.27 | K111: 2745.27 | M111: 2370.18 | O111: 2023.23 | Q111: 3357.69 | S111: 3381.9 | U111: 3381.9 | W111: 3431.62 | Y111: 2029.95 | AA111: 3101.02 | AC111: 3101.02 | AE111: 1112.93 | AG111: 1112.93 | AI111: 3143.09
B112: COSTES INDIRECTOS | E112: =6.5/100*(E50+E57+E76+E108) -> 12984.99 | G112: =6.5/100*(G50+G57+G76+G108) -> 9429.27 | I112: =6.5/100*(I50+I57+I76+I108) -> 8235.81 | K112: =6.5/100*(K50+K57+K76+K108) -> 8235.81 | M112: =6.5/100*(M50+M57+M76+M108) -> 7110.54 | O112: =6.5/100*(O50+O57+O76+O108) -> 6069.69 | Q112: =6.5/100*(Q50+Q57+Q76+Q108) -> 10073.09 | S112: =6.5/100*(S50+S57+S76+S108) -> 10145.7 | U112: =6.5/100*(U50+U57+U76+U108) -> 10145.7 | W112: =6.5/100*(W50+W57+W76+W108) -> 10294.86 | Y112: =6.5/100*(Y50+Y57+Y76+Y108) -> 6089.85 | AA112: =6.5/100*(AA50+AA57+AA76+AA108) -> 9303.06 | AC112: =6.5/100*(AC50+AC57+AC76+AC108) -> 9303.06 | AE112: =6.5/100*(AE50+AE57+AE76+AE108) -> 3338.79 | AG112: =6.5/100*(AG50+AG57+AG76+AG108) -> 3338.79 | AI112: =6.5/100*(AI50+AI57+AI76+AI108) -> 9429.27
B113: COSTES TOTALES | E113: =(E50+E57+E76+E108)+E112 -> 0 | G113: =(G50+G57+G76+G108)+G112 -> 0 | I113: =(I50+I57+I76+I108)+I112 -> 0 | K113: =(K50+K57+K76+K108)+K112 -> 0 | M113: =(M50+M57+M76+M108)+M112 -> 0 | O113: =(O50+O57+O76+O108)+O112 -> 0 | Q113: =(Q50+Q57+Q76+Q108)+Q112 -> 0 | S113: =(S50+S57+S76+S108)+S112 -> 0 | U113: =(U50+U57+U76+U108)+U112 -> 0 | W113: =(W50+W57+W76+W108)+W112 -> 0 | Y113: =(Y50+Y57+Y76+Y108)+Y112 -> 0 | AA113: =(AA50+AA57+AA76+AA108)+AA112 -> 0 | AC113: 0 | AE113: =(AE50+AE57+AE76+AE108)+AE112 -> 0 | AG113: =(AG50+AG57+AG76+AG108)+AG112 -> 0 | AI113: =(AI50+AI57+AI76+AI108)+AI112 -> 0
B121: Valor de adquisición del vehículo sin IVA y sin neumáticos (€) | E121: =E21-(E90*E94+E91*E95) -> 0 | G121: =G21-(G90*G94+G91*G95) -> 0 | I121: =I21-(I90*I94+I91*I95) -> 0 | K121: =K21-(K90*K94+K91*K95) -> 0 | M121: =M21-(M90*M94+M91*M95) -> 0 | O121: =O21-(O90*O94+O91*O95) -> 0 | Q121: =Q21-(Q90*Q94+Q91*Q95) -> 0 | S121: =S21-(S90*S94+S91*S95) -> 0 | U121: =U21-(U90*U94+U91*U95) -> 0 | W121: =W21-(W90*W94+W91*W95) -> 0 | Y121: =Y21-(Y90*Y94+Y91*Y95) -> 0 | AA121: =AA21-(AA90*AA94+AA91*AA95) -> 0 | AC121: =AC21-(AC90*AC94+AC91*AC95) -> 0 | AE121: =AE21-(AE90*AE94+AE91*AE95) -> 0 | AG121: =AG21-(AG90*AG94+AG91*AG95) -> 0 | AI121: =AI21-(AI90*AI94+AI91*AI95) -> 0
B122: Valor de adquisición del remolque-semirremolque sin IVA y sin neumáticos (€) | E122: =E37-(E93*E97) -> 0 | G122: =G37-(G93*G97) -> 0 | I122: =I37-(I93*I97) -> 0 | K122: =K37-(K93*K97) -> 0 | M122: =M37-(M93*M97) -> 0 | O122: =O37-(O93*O97) -> 0 | Q122: =Q37-(Q93*Q97) -> 0 | S122: =S37-(S93*S97) -> 0 | U122: =U37-(U93*U97) -> 0 | W122: =W37-(W93*W97) -> 0 | Y122: =Y37-(Y93*Y97) -> 0 | AA122: =AA37-(AA93*AA97) -> 0 | AC122: =AC37-(AC93*AC97) -> 0 | AE122: =AE37-(AE93*AE97) -> 0 | AG122: =AG37-(AG93*AG97) -> 0 | AI122: =AI37-(AI93*AI97) -> 0
B123: Dietas y plus de actividad anuales del conductor (€) | E123: =E54+E56 -> 0 | G123: =G54+G56 -> 0 | I123: =I54+I56 -> 0 | K123: =K54+K56 -> 0 | M123: =M54+M56 -> 0 | O123: =O54+O56 -> 0 | Q123: =Q54+Q56 -> 0 | S123: =S54+S56 -> 0 | U123: =U54+U56 -> 0 | W123: =W54+W56 -> 0 | Y123: =Y54+Y56 -> 0 | AA123: =AA54+AA56 -> 0 | AC123: =AC54+AC56 -> 0 | AE123: =AE54+AE56 -> 0 | AG123: =AG54+AG56 -> 0 | AI123: =AI54+AI56 -> 0
B124: Gasto anual en mantenimiento, sin IVA (€) | E124: =E104+E106 -> 0 | G124: =G104+G106 -> 0 | I124: =I104+I106 -> 0 | K124: =K104+K106 -> 0 | M124: =M104+M106 -> 0 | O124: =O104+O106 -> 0 | Q124: =Q104+Q106 -> 0 | S124: =S104+S106 -> 0 | U124: =U104+U106 -> 0 | W124: =W104+W106 -> 0 | Y124: =Y104+Y106 -> 0 | AA124: =AA104+AA106 -> 0 | AC124: =AC104+AC106 -> 0 | AE124: =AE104+AE106 -> 0 | AG124: =AG104+AG106 -> 0 | AI124: =AI104+AI106 -> 0
B125: Costo neumáticos por km | E125: =IFERROR((E90*E94/E98),0)+IFERROR((E91*E95/E99),0)+IFERROR((E92*E96/E100),0)+IFERROR((E93*E97/E101),0) -> 0 | G125: =IFERROR((G90*G94/G98),0)+IFERROR((G91*G95/G99),0)+IFERROR((G92*G96/G100),0)+IFERROR((G93*G97/G101),0) -> 0 | I125: =IFERROR((I90*I94/I98),0)+IFERROR((I91*I95/I99),0)+IFERROR((I92*I96/I100),0)+IFERROR((I93*I97/I101),0) -> 0 | K125: =IFERROR((K90*K94/K98),0)+IFERROR((K91*K95/K99),0)+IFERROR((K92*K96/K100),0)+IFERROR((K93*K97/K101),0) -> 0 | M125: =IFERROR((M90*M94/M98),0)+IFERROR((M91*M95/M99),0)+IFERROR((M92*M96/M100),0)+IFERROR((M93*M97/M101),0) -> 0 | O125: =IFERROR((O90*O94/O98),0)+IFERROR((O91*O95/O99),0)+IFERROR((O92*O96/O100),0)+IFERROR((O93*O97/O101),0) -> 0 | Q125: =IFERROR((Q90*Q94/Q98),0)+IFERROR((Q91*Q95/Q99),0)+IFERROR((Q92*Q96/Q100),0)+IFERROR((Q93*Q97/Q101),0) -> 0 | S125: =IFERROR((S90*S94/S98),0)+IFERROR((S91*S95/S99),0)+IFERROR((S92*S96/S100),0)+IFERROR((S93*S97/S101),0) -> 0 | U125: =IFERROR((U90*U94/U98),0)+IFERROR((U91*U95/U99),0)+IFERROR((U92*U96/U100),0)+IFERROR((U93*U97/U101),0) -> 0 | W125: =IFERROR((W90*W94/W98),0)+IFERROR((W91*W95/W99),0)+IFERROR((W92*W96/W100),0)+IFERROR((W93*W97/W101),0) -> 0 | Y125: =IFERROR((Y90*Y94/Y98),0)+IFERROR((Y91*Y95/Y99),0)+IFERROR((Y92*Y96/Y100),0)+IFERROR((Y93*Y97/Y101),0) -> 0 | AA125: =IFERROR((AA90*AA94/AA98),0)+IFERROR((AA91*AA95/AA99),0)+IFERROR((AA92*AA96/AA100),0)+IFERROR((AA93*AA97/AA101),0) -> 0 | AC125: =IFERROR((AC90*AC94/AC98),0)+IFERROR((AC91*AC95/AC99),0)+IFERROR((AC92*AC96/AC100),0)+IFERROR((AC93*AC97/AC101),0) -> 0 | AE125: =IFERROR((AE90*AE94/AE98),0)+IFERROR((AE91*AE95/AE99),0)+IFERROR((AE92*AE96/AE100),0)+IFERROR((AE93*AE97/AE101),0) -> 0 | AG125: =IFERROR((AG90*AG94/AG98),0)+IFERROR((AG91*AG95/AG99),0)+IFERROR((AG92*AG96/AG100),0)+IFERROR((AG93*AG97/AG101),0) -> 0 | AI125: =IFERROR((AI90*AI94/AI98),0)+IFERROR((AI91*AI95/AI99),0)+IFERROR((AI92*AI96/AI100),0)+IFERROR((AI93*AI97/AI101),0) -> 0

Sheet Tipo Vehículo
C6: Seleccionar tipo de vehículo
C10: Tipo de vehículo: | E10: =VLOOKUP(F10,T!A2:B17,2,0) -> T16 | F10: Vehículo genérico (para todos aquellos vehículos que no puedan ser englobados en las categorías anteriores)
C12: ¿Desea comenzar la simulación con los datos estadísticos añadidos a los formularios de cálculo?

Sheet Características Vehículo
C6: 1. Características del vehículo
C9: Características técnicas del vehiculo | L9: Datos estadísticos | M9: =DE!$AJ$2 -> 08/01/2024
C11: Descripción: | J11: =IF(HLOOKUP('Tipo Vehículo'!$E$10,DE!$E$1:$AI$284,2,0)="","",HLOOKUP('Tipo Vehículo'!$E$10,DE!$E$1:$AI$284,2,0)) -> Vehículo genérico (para todos aquellos vehículos que no puedan ser englobados en las categorías anteriores)
C13: Potencia: | L13: =IF(HLOOKUP('Tipo Vehículo'!$E$10,DE!$D$1:$AI$282,4,0)="","",HLOOKUP('Tipo Vehículo'!$E$10,DE!$D$1:$AI$282,4,0)) -> 
C15: MMA (Tm): | L15: =IF(HLOOKUP('Tipo Vehículo'!$E$10,DE!$D$1:$AI$282,5,0)="","",HLOOKUP('Tipo Vehículo'!$E$10,DE!$D$1:$AI$282,5,0)) -> 
C17: Carga útil: | L17: =IF(HLOOKUP('Tipo Vehículo'!$E$10,DE!$D$1:$AI$282,6,0)="","",HLOOKUP('Tipo Vehículo'!$E$10,DE!$D$1:$AI$282,6,0)) -> 
C19: Número de ejes: | L19: =IF(HLOOKUP('Tipo Vehículo'!$E$10,DE!$D$1:$AI$282,7,0)="","",HLOOKUP('Tipo Vehículo'!$E$10,DE!$D$1:$AI$282,7,0)) -> 
C21: Número de neumáticos: | L21: =IF(HLOOKUP('Tipo Vehículo'!$E$10,DE!$D$1:$AI$282,8,0)="","",HLOOKUP('Tipo Vehículo'!$E$10,DE!$D$1:$AI$282,8,0)) -> 
C23: Características de explotación del vehículo | L23: Datos estadísticos | M23: =DE!$AJ$2 -> 08/01/2024
C25: Kilómetros recorridos anualmente | L25: =IF(HLOOKUP('Tipo Vehículo'!$E$10,DE!$D$1:$AI$282,9,0)="","",HLOOKUP('Tipo Vehículo'!$E$10,DE!$D$1:$AI$282,9,0)) -> 
C27: Kilometros recorridos anualmente en carga (%,km) € | I27: % | J27: =ROUND(J25*H27/100,2) -> 0 | K27: =IF(HLOOKUP(CONCATENATE('Tipo Vehículo'!$E$10,"A"),DE!$D$1:$AI$282,10,0)="","",HLOOKUP(CONCATENATE('Tipo Vehículo'!$E$10,"A"),DE!$D$1:$AI$282,10,0)) ->  | L27: =IF(HLOOKUP('Tipo Vehículo'!$E$10,DE!$D$1:$AI$282,10,0)="","",HLOOKUP('Tipo Vehículo'!$E$10,DE!$D$1:$AI$282,10,0)) -> 0
C29: Kilometros recorridos anualmente en vacío (%,km) € | H29: =100-H27 -> 100 | I29: % | J29: =ROUND(J25-J27,2) -> 0 | K29: =IF(HLOOKUP(CONCATENATE('Tipo Vehículo'!$E$10,"A"),DE!$D$1:$AI$282,11,0)="","",HLOOKUP(CONCATENATE('Tipo Vehículo'!$E$10,"A"),DE!$D$1:$AI$282,11,0)) ->  | L29: =IF(HLOOKUP('Tipo Vehículo'!$E$10,DE!$D$1:$AI$282,11,0)="","",HLOOKUP('Tipo Vehículo'!$E$10,DE!$D$1:$AI$282,11,0)) -> 0
C31: Consumo medio (litros/100km) | L31: =IF(HLOOKUP('Tipo Vehículo'!$E$10,DE!$D$1:$AI$282,12,0)="","",HLOOKUP('Tipo Vehículo'!$E$10,DE!$D$1:$AI$282,12,0)) -> 
C33: Horas trabajadas al año | L33: =IF(HLOOKUP('Tipo Vehículo'!$E$10,DE!$D$1:$AI$282,13,0)="","",HLOOKUP('Tipo Vehículo'!$E$10,DE!$D$1:$AI$282,13,0)) -> 
C35: Horas trabajadas al año en carga (%,h) | I35: % | J35: =ROUND(J33*H35/100,2) -> 0 | K35: =IF(HLOOKUP(CONCATENATE('Tipo Vehículo'!$E$10,"A"),DE!$D$1:$AI$282,14,0)="","",HLOOKUP(CONCATENATE('Tipo Vehículo'!$E$10,"A"),DE!$D$1:$AI$282,14,0)) ->  | L35: =IF(HLOOKUP('Tipo Vehículo'!$E$10,DE!$D$1:$AI$282,14,0)="","",HLOOKUP('Tipo Vehículo'!$E$10,DE!$D$1:$AI$282,14,0)) -> 0
C37: Horas trabajadas al año en vacío (%,h) | H37: =100-H35 -> 100 | I37: % | J37: =J33-J35 -> 0 | K37: =IF(HLOOKUP(CONCATENATE('Tipo Vehículo'!$E$10,"A"),DE!$D$1:$AI$282,15,0)="","",HLOOKUP(CONCATENATE('Tipo Vehículo'!$E$10,"A"),DE!$D$1:$AI$282,15,0)) ->  | L37: =IF(HLOOKUP('Tipo Vehículo'!$E$10,DE!$D$1:$AI$282,15,0)="","",HLOOKUP('Tipo Vehículo'!$E$10,DE!$D$1:$AI$282,15,0)) -> 0
C39: Dias trabajados al año | L39: =IF(HLOOKUP('Tipo Vehículo'!$E$10,DE!$D$1:$AI$282,16,0)="","",HLOOKUP('Tipo Vehículo'!$E$10,DE!$D$1:$AI$282,16,0)) -> 
C41: Horas trabajadas por jornada | J41: =IFERROR(ROUND(J33/J39,0),0) -> 0 | L41: =IF(HLOOKUP('Tipo Vehículo'!$E$10,DE!$D$1:$AI$282,17,0)="","",HLOOKUP('Tipo Vehículo'!$E$10,DE!$D$1:$AI$282,17,0)) -> 

Sheet Costes Adquisición
C6: 2. Costes de adquisición
C9: Vehículo de Tracción | J9: Datos estadísticos | K9: =DE!$AJ$2 -> 08/01/2024
J10: =IF(HLOOKUP('Tipo Vehículo'!$E$10,DE!$D$1:$AX$284,3,0)="","",HLOOKUP('Tipo Vehículo'!$E$10,DE!$D$1:$AX$284,3,0)) -> 
C11: Forma de adquisición: | H11: COMPRA
C13: Pago de alquiler o leasing anual (€) | H13: 0 | J13: =IF(HLOOKUP('Tipo Vehículo'!$E$10,DE!$D$1:$AI$282,18,0)="","",HLOOKUP('Tipo Vehículo'!$E$10,DE!$D$1:$AI$282,18,0)) -> 
C15: Compra del vehículo de tracción (€)
C17: Precio de tarifa sin IVA (€) | J17: =IF(HLOOKUP('Tipo Vehículo'!$E$10,DE!$D$1:$AI$282,19,0)="","",HLOOKUP('Tipo Vehículo'!$E$10,DE!$D$1:$AI$282,19,0)) -> 
C19: Descuento sobre tarifa (%) | J19: =IF(HLOOKUP('Tipo Vehículo'!$E$10,DE!$D$1:$AI$282,20,0)="","",HLOOKUP('Tipo Vehículo'!$E$10,DE!$D$1:$AI$282,20,0)) -> 
C21: Precio de adquisición sin IVA (€) | H21: =ROUND((1-H19/100)*H17,0) -> 0 | J21: =IF(HLOOKUP('Tipo Vehículo'!$E$10,DE!$D$1:$AI$282,21,0)="","",HLOOKUP('Tipo Vehículo'!$E$10,DE!$D$1:$AI$282,21,0)) -> 0
C23: Vida útil (años) | J23: =IF(HLOOKUP('Tipo Vehículo'!$E$10,DE!$D$1:$AI$282,22,0)="","",HLOOKUP('Tipo Vehículo'!$E$10,DE!$D$1:$AI$282,22,0)) -> 
C25: Valor residual sobre precio de tarifa (%) | J25: =IF(HLOOKUP(CONCATENATE('Tipo Vehículo'!$E$10,"A"),DE!$D$1:$AI$282,23,0)="","",HLOOKUP(CONCATENATE('Tipo Vehículo'!$E$10,"A"),DE!$D$1:$AI$282,23,0)) -> 
C27: Valor residual sin IVA (€) | H27: =ROUND(H25/100*H17,0) -> 0 | J27: =IF(HLOOKUP('Tipo Vehículo'!$E$10,DE!$D$1:$AI$282,23,0)="","",HLOOKUP('Tipo Vehículo'!$E$10,DE!$D$1:$AI$282,23,0)) -> 0
C29: AMORTIZACIÓN DEL VEHÍCULO DE TRACCIÓN | H29: =ROUND(IFERROR(IF(H11=T!F2,ROUND((H21-H27-('Costes Variables'!J$41*'Costes Variables'!J$49)-('Costes Variables'!J$43*'Costes Variables'!J$51)-('Costes Variables'!J$45*'Costes Variables'!J$53))*(1/H23),2),0),0),0) -> 0 | J29: =IF(HLOOKUP('Tipo Vehículo'!$E$10,DE!$D$1:$AI$282,24,0)="","",HLOOKUP('Tipo Vehículo'!$E$10,DE!$D$1:$AI$282,24,0)) -> 0
C31: GASTOS FINANCIEROS DEL VEHÍCULO DE TRACCIÓN | H31: =ROUND(IFERROR(IF(H11=T!F2,ROUND((H21-H27-('Costes Variables'!J$41*'Costes Variables'!J$49)-('Costes Variables'!J$43*'Costes Variables'!J$51)-('Costes Variables'!J$45*'Costes Variables'!J$53))*(-(1/H23)+J$10/(1-POWER(1+J$10,-H23))),2),0),0),0) -> 0 | J31: =IF(HLOOKUP('Tipo Vehículo'!$E$10,DE!$D$1:$AI$282,25,0)="","",HLOOKUP('Tipo Vehículo'!$E$10,DE!$D$1:$AI$282,25,0)) -> 0
C33: Carrozado del vehículo | J33: Datos estadísticos | K33: =DE!$AJ$2 -> 08/01/2024
C35: Forma de adquisición: | H35: Compra
C37: Pago de alquiler o leasing anual (€) | J37: =IF(HLOOKUP('Tipo Vehículo'!$E$10,DE!$D$1:$AI$282,26,0)="","",HLOOKUP('Tipo Vehículo'!$E$10,DE!$D$1:$AI$282,26,0)) -> 0
C39: Compra carrozado (€)
C41: Precio de tarifa sin IVA (€) | J41: =IF(HLOOKUP('Tipo Vehículo'!$E$10,DE!$D$1:$AI$282,27,0)="","",HLOOKUP('Tipo Vehículo'!$E$10,DE!$D$1:$AI$282,27,0)) -> 0
C43: Descuento sobre tarifa (%) | J43: =IF(HLOOKUP('Tipo Vehículo'!$E$10,DE!$D$1:$AI$282,28,0)="","",HLOOKUP('Tipo Vehículo'!$E$10,DE!$D$1:$AI$282,28,0)) -> 0
C45: Precio de adquisición sin IVA (€) | H45: =(1-H43/100)*H41 -> 0 | J45: =IF(HLOOKUP('Tipo Vehículo'!$E$10,DE!$D$1:$AI$282,29,0)="","",HLOOKUP('Tipo Vehículo'!$E$10,DE!$D$1:$AI$282,29,0)) -> 0
C47: Vida útil (años) | J47: =IF(HLOOKUP('Tipo Vehículo'!$E$10,DE!$D$1:$AI$282,30,0)="","",HLOOKUP('Tipo Vehículo'!$E$10,DE!$D$1:$AI$282,30,0)) -> 0
C49: Valor residual sobre precio de tarifa (%) | J49: =IF(HLOOKUP(CONCATENATE('Tipo Vehículo'!$E$10,"A"),DE!$D$1:$AI$282,31,0)="","",HLOOKUP(CONCATENATE('Tipo Vehículo'!$E$10,"A"),DE!$D$1:$AI$282,31,0)) -> 0
C51: Valor residual sin IVA (€) | H51: =ROUND(H49/100*H41,0) -> 0 | J51: =IF(HLOOKUP('Tipo Vehículo'!$E$10,DE!$D$1:$AI$282,31,0)="","",HLOOKUP('Tipo Vehículo'!$E$10,DE!$D$1:$AI$282,31,0)) -> 0
C53: AMORTIZACIÓN CARROZADO | H53: =ROUND(IFERROR(IF(H35=T!F2,ROUND((H45-H51)*(1/H47),2),0),0),0) -> 0 | J53: =IF(HLOOKUP('Tipo Vehículo'!$E$10,DE!$D$1:$AI$282,32,0)="","",HLOOKUP('Tipo Vehículo'!$E$10,DE!$D$1:$AI$282,32,0)) -> 0
C55: GASTOS FINANCIEROS CARROZADO | H55: =ROUND(IFERROR(IF(H35=T!F2,ROUND((H45-H51)*(-(1/H47)+J$10/(1-POWER(1+J$10,-H47))),2),0),0),0) -> 0 | J55: =IF(HLOOKUP('Tipo Vehículo'!$E$10,DE!$D$1:$AI$282,33,0)="","",HLOOKUP('Tipo Vehículo'!$E$10,DE!$D$1:$AI$282,33,0)) -> 0
C57: Semirremolque o remolque | J57: Datos estadísticos | K57: =DE!$AJ$2 -> 08/01/2024
C59: Forma de adquisición: | H59: COMPRA
C61: Pago de alquiler o leasing anual (€) | J61: =IF(HLOOKUP('Tipo Vehículo'!$E$10,DE!$D$1:$AI$282,34,0)="","",HLOOKUP('Tipo Vehículo'!$E$10,DE!$D$1:$AI$282,34,0)) -> 
C63: Compra remolque o semiremolque (€)
C65: Precio de tarifa sin IVA (€) | J65: =IF(HLOOKUP('Tipo Vehículo'!$E$10,DE!$D$1:$AI$282,35,0)="","",HLOOKUP('Tipo Vehículo'!$E$10,DE!$D$1:$AI$282,35,0)) -> 
C67: Descuento sobre tarifa (%) | J67: =IF(HLOOKUP('Tipo Vehículo'!$E$10,DE!$D$1:$AI$282,36,0)="","",HLOOKUP('Tipo Vehículo'!$E$10,DE!$D$1:$AI$282,36,0)) -> 
C69: Precio de adquisición sin IVA (€) | H69: =(1-H67/100)*H65 -> 0 | J69: =IF(HLOOKUP('Tipo Vehículo'!$E$10,DE!$D$1:$AI$282,37,0)="","",HLOOKUP('Tipo Vehículo'!$E$10,DE!$D$1:$AI$282,37,0)) -> 0
C71: Vida útil (años) | J71: =IF(HLOOKUP('Tipo Vehículo'!$E$10,DE!$D$1:$AI$282,38,0)="","",HLOOKUP('Tipo Vehículo'!$E$10,DE!$D$1:$AI$282,38,0)) -> 
C73: Valor residual sobre precio de tarifa (%) | J73: =IF(HLOOKUP(CONCATENATE('Tipo Vehículo'!$E$10,"A"),DE!$D$1:$AI$282,39,0)="","",HLOOKUP(CONCATENATE('Tipo Vehículo'!$E$10,"A"),DE!$D$1:$AI$282,39,0)) -> 
C75: Valor residual sin IVA (€) | H75: =ROUND(H73/100*H65,0) -> 0 | J75: =IF(HLOOKUP('Tipo Vehículo'!$E$10,DE!$D$1:$AI$282,39,0)="","",HLOOKUP('Tipo Vehículo'!$E$10,DE!$D$1:$AI$282,39,0)) -> 0
C77: AMORTIZACIÓN REMOLQUE | H77: =ROUND(IFERROR(IF(H59=T!F2,ROUND((H69-H75-('Costes Variables'!J47*'Costes Variables'!J55))*(1/H71),2),0),0),0) -> 0 | J77: =IF(HLOOKUP('Tipo Vehículo'!$E$10,DE!$D$1:$AI$282,40,0)="","",HLOOKUP('Tipo Vehículo'!$E$10,DE!$D$1:$AI$282,40,0)) -> 0
C79: GASTOS FINANCIEROS REMOLQUE | H79: =ROUND(IFERROR(IF(H59=T!F2,ROUND((H69-H75-('Costes Variables'!J$47*'Costes Variables'!J$55))*(-(1/H71)+J$10/(1-POWER(1+J$10,-H71))),2),0),0),0) -> 0 | J79: =IF(HLOOKUP('Tipo Vehículo'!$E$10,DE!$D$1:$AI$282,41,0)="","",HLOOKUP('Tipo Vehículo'!$E$10,DE!$D$1:$AI$282,41,0)) -> 0
C81: Equipos auxiliares | J81: Datos estadísticos | K81: =DE!$AJ$2 -> 08/01/2024
C83: Forma de adquisición: | H83: Compra
C85: Pago de leasing o renta anual (€) | J85: =IF(HLOOKUP('Tipo Vehículo'!$E$10,DE!$D$1:$AI$282,42,0)="","",HLOOKUP('Tipo Vehículo'!$E$10,DE!$D$1:$AI$282,42,0)) -> 0
C87: Compra de los equipos (€)
C89: Precio de tarifa sin IVA (€) | J89: =IF(HLOOKUP('Tipo Vehículo'!$E$10,DE!$D$1:$AI$282,43,0)="","",HLOOKUP('Tipo Vehículo'!$E$10,DE!$D$1:$AI$282,43,0)) -> 0
C91: Descuento sobre tarifa (%) | J91: =IF(HLOOKUP('Tipo Vehículo'!$E$10,DE!$D$1:$AI$282,44,0)="","",HLOOKUP('Tipo Vehículo'!$E$10,DE!$D$1:$AI$282,44,0)) -> 0
C93: Precio de adquisición sin IVA (€) | H93: =(1-H91/100)*H89 -> 0 | J93: =IF(HLOOKUP('Tipo Vehículo'!$E$10,DE!$D$1:$AI$282,45,0)="","",HLOOKUP('Tipo Vehículo'!$E$10,DE!$D$1:$AI$282,45,0)) -> 0
C95: Vida útil (años) | J95: =IF(HLOOKUP('Tipo Vehículo'!$E$10,DE!$D$1:$AI$282,46,0)="","",HLOOKUP('Tipo Vehículo'!$E$10,DE!$D$1:$AI$282,46,0)) -> 0
C97: Valor residual sobre precio de tarifa (%) | J97: =IF(HLOOKUP(CONCATENATE('Tipo Vehículo'!$E$10,"A"),DE!$D$1:$AI$282,47,0)="","",HLOOKUP(CONCATENATE('Tipo Vehículo'!$E$10,"A"),DE!$D$1:$AI$282,47,0)) -> 0
C99: Valor residual sin IVA (€) | H99: =H97/100*H89 -> 0 | J99: =IF(HLOOKUP('Tipo Vehículo'!$E$10,DE!$D$1:$AI$282,47,0)="","",HLOOKUP('Tipo Vehículo'!$E$10,DE!$D$1:$AI$282,47,0)) -> 0
C101: AMORTIZACIÓN EQUIPOS | H101: =IFERROR(IF(H83=T!F2,ROUND((H93-H99)*(1/H95),2),0),0) -> 0 | J101: =IF(HLOOKUP('Tipo Vehículo'!$E$10,DE!$D$1:$AI$282,48,0)="","",HLOOKUP('Tipo Vehículo'!$E$10,DE!$D$1:$AI$282,48,0)) -> 0
C103: GASTOS FINANCIEROS EQUIPOS | H103: =IFERROR(IF(H83=T!F2,ROUND((H93-H99)*(-(1/H95)+J$10/(1-POWER(1+J$10,-H95))),2),0),0) -> 0 | J103: =IF(HLOOKUP('Tipo Vehículo'!$E$10,DE!$D$1:$AI$282,49,0)="","",HLOOKUP('Tipo Vehículo'!$E$10,DE!$D$1:$AI$282,49,0)) -> 0
C105: COSTES DE ADQUISICIÓN | H105: =ROUND(H13+H29+H31+H37+H53+H55+H61+H77+H79+H85+H101+H103,0) -> 0 | J105: =IF(HLOOKUP('Tipo Vehículo'!$E$10,DE!$D$1:$AI$282,50,0)="","",HLOOKUP('Tipo Vehículo'!$E$10,DE!$D$1:$AI$282,50,0)) -> 0

Sheet Costes Personal
C6: 3. Costes de personal
C9: Costes de Personal | J9: Datos estadísticos | K9: =DE!$AJ$2 -> 08/01/2024
C11: Coste total anual del conductor, incluidos costes de empresa (Seg. Soc. y otros) € | J11: =IF(HLOOKUP('Tipo Vehículo'!$E$10,DE!$D$1:$AI$282,51,0)="","",HLOOKUP('Tipo Vehículo'!$E$10,DE!$D$1:$AI$282,51,0)) -> 
C13: Dieta total diaria del conductor (€/día) | J13: =IF(HLOOKUP('Tipo Vehículo'!$E$10,DE!$D$1:$AI$282,52,0)="","",HLOOKUP('Tipo Vehículo'!$E$10,DE!$D$1:$AI$282,52,0)) -> 
C15: Número de días con dieta al año | J15: =IF(HLOOKUP('Tipo Vehículo'!$E$10,DE!$D$1:$AI$282,53,0)="","",HLOOKUP('Tipo Vehículo'!$E$10,DE!$D$1:$AI$282,53,0)) -> 
C17: Dietas totales anuales (€) | H17: =H15*H13 -> 0 | J17: =IF(HLOOKUP('Tipo Vehículo'!$E$10,DE!$D$1:$AI$282,54,0)="","",HLOOKUP('Tipo Vehículo'!$E$10,DE!$D$1:$AI$282,54,0)) -> 0
C19: Plus anual de actividad del conductor (€/km) | J19: =IF(HLOOKUP('Tipo Vehículo'!$E$10,DE!$D$1:$AI$282,55,0)="","",HLOOKUP('Tipo Vehículo'!$E$10,DE!$D$1:$AI$282,55,0)) -> 
C21: Plus anual de actividad del conductor (€) | H21: =H19*'Características Vehículo'!J25 -> 0 | J21: =IF(HLOOKUP('Tipo Vehículo'!$E$10,DE!$D$1:$AI$282,56,0)="","",HLOOKUP('Tipo Vehículo'!$E$10,DE!$D$1:$AI$282,56,0)) -> 0
C23: COSTES DE PERSONAL | H23: =H11+H17+H21 -> 0 | J23: =IF(HLOOKUP('Tipo Vehículo'!$E$10,DE!$D$1:$AI$282,57,0)="","",HLOOKUP('Tipo Vehículo'!$E$10,DE!$D$1:$AI$282,57,0)) -> 0

Sheet Seguros y Costes Fiscales
C6: 4. Seguros y costes fiscales
C9: Seguros | J9: Datos estadísticos | K9: =DE!$AJ$2 -> 08/01/2024
C11: Responsabilidad civil del vehículo de tracción (€) | J11: =IF(HLOOKUP('Tipo Vehículo'!$E$10,DE!$D$1:$AI$282,58,0)="","",HLOOKUP('Tipo Vehículo'!$E$10,DE!$D$1:$AI$282,58,0)) -> 
C13: Responsabilidad civil del remolque o semirremolque (€) | J13: =IF(HLOOKUP('Tipo Vehículo'!$E$10,DE!$D$1:$AI$282,59,0)="","",HLOOKUP('Tipo Vehículo'!$E$10,DE!$D$1:$AI$282,59,0)) -> 
C15: Responsabilidad civil de la mercancía (€) | J15: =IF(HLOOKUP('Tipo Vehículo'!$E$10,DE!$D$1:$AI$282,60,0)="","",HLOOKUP('Tipo Vehículo'!$E$10,DE!$D$1:$AI$282,60,0)) -> 
C17: Accidente del conductor (€) | J17: =IF(HLOOKUP('Tipo Vehículo'!$E$10,DE!$D$1:$AI$282,61,0)="","",HLOOKUP('Tipo Vehículo'!$E$10,DE!$D$1:$AI$282,61,0)) -> 
C19: Retirada del carné de conducir (€) | J19: =IF(HLOOKUP('Tipo Vehículo'!$E$10,DE!$D$1:$AI$282,62,0)="","",HLOOKUP('Tipo Vehículo'!$E$10,DE!$D$1:$AI$282,62,0)) -> 
C21: Seguro de la mercancía (€) | J21: =IF(HLOOKUP('Tipo Vehículo'!$E$10,DE!$D$1:$AI$282,63,0)="","",HLOOKUP('Tipo Vehículo'!$E$10,DE!$D$1:$AI$282,63,0)) -> 
C23: Daños propios (seguro todo riesgo) (€) | J23: =IF(HLOOKUP('Tipo Vehículo'!$E$10,DE!$D$1:$AI$282,64,0)="","",HLOOKUP('Tipo Vehículo'!$E$10,DE!$D$1:$AI$282,64,0)) -> 
C25: Otros seguros (€) | J25: =IF(HLOOKUP('Tipo Vehículo'!$E$10,DE!$D$1:$AI$282,65,0)="","",HLOOKUP('Tipo Vehículo'!$E$10,DE!$D$1:$AI$282,65,0)) -> 
C27: COSTE TOTAL ANUAL DE LOS SEGUROS (€) | H27: =H11+H13+H15+H17+H19+H21+H23+H25 -> 0 | J27: =IF(HLOOKUP('Tipo Vehículo'!$E$10,DE!$D$1:$AI$282,66,0)="","",HLOOKUP('Tipo Vehículo'!$E$10,DE!$D$1:$AI$282,66,0)) -> 0
C29: Costes fiscales | J29: Datos estadísticos | K29: =DE!$AJ$2 -> 08/01/2024
C31: Visados | J31: =IF(HLOOKUP('Tipo Vehículo'!$E$10,DE!$D$1:$AI$282,67,0)="","",HLOOKUP('Tipo Vehículo'!$E$10,DE!$D$1:$AI$282,67,0)) -> 
C33: Inspección técnica de vehículos (I.T.V.) | J33: =IF(HLOOKUP('Tipo Vehículo'!$E$10,DE!$D$1:$AI$282,68,0)="","",HLOOKUP('Tipo Vehículo'!$E$10,DE!$D$1:$AI$282,68,0)) -> 
C35: Impuesto de actividades económicas (I.A.E.) repercutible a este vehículo | J35: =IF(HLOOKUP('Tipo Vehículo'!$E$10,DE!$D$1:$AI$282,69,0)="","",HLOOKUP('Tipo Vehículo'!$E$10,DE!$D$1:$AI$282,69,0)) -> 
C37: Impuesto de Vehículos de Tracción Mecánica (I.T.V.M.) | J37: =IF(HLOOKUP('Tipo Vehículo'!$E$10,DE!$D$1:$AI$282,70,0)="","",HLOOKUP('Tipo Vehículo'!$E$10,DE!$D$1:$AI$282,70,0)) -> 
C39: Revisión tacógrafo | J39: =IF(HLOOKUP('Tipo Vehículo'!$E$10,DE!$D$1:$AI$282,71,0)="","",HLOOKUP('Tipo Vehículo'!$E$10,DE!$D$1:$AI$282,71,0)) -> 
C41: Inspecciones A.T.P. (transporte mercancías perecederas) | J41: =IF(HLOOKUP('Tipo Vehículo'!$E$10,DE!$D$1:$AI$282,72,0)="","",HLOOKUP('Tipo Vehículo'!$E$10,DE!$D$1:$AI$282,72,0)) -> 0
C43: Inspecciones A.D.R. (transporte mercancías peligrosas) | J43: =IF(HLOOKUP('Tipo Vehículo'!$E$10,DE!$D$1:$AI$282,73,0)="","",HLOOKUP('Tipo Vehículo'!$E$10,DE!$D$1:$AI$282,73,0)) -> 0
C45: Otros costes fiscales | J45: =IF(HLOOKUP('Tipo Vehículo'!$E$10,DE!$D$1:$AI$282,74,0)="","",HLOOKUP('Tipo Vehículo'!$E$10,DE!$D$1:$AI$282,74,0)) -> 
C47: COSTE FISCAL TOTAL ANUAL | H47: =H31+H33+H35+H37+H39+H41+H43+H45 -> 0 | J47: =IF(HLOOKUP('Tipo Vehículo'!$E$10,DE!$D$1:$AI$282,75,0)="","",HLOOKUP('Tipo Vehículo'!$E$10,DE!$D$1:$AI$282,75,0)) -> 0
C49: SEGUROS Y COSTES FISCALES | H49: =H27+H47 -> 0 | J49: =IF(HLOOKUP('Tipo Vehículo'!$E$10,DE!$D$1:$AI$282,76,0)="","",HLOOKUP('Tipo Vehículo'!$E$10,DE!$D$1:$AI$282,76,0)) -> 0

Sheet Costes Variables
C6: 5. Costes variables
C9: Carburante del vehículo | L9: Datos estadísticos | M9: =DE!$AJ$2 -> 08/01/2024
C11: Precio del carburante con IVA (€/litro) | L11: =IF(HLOOKUP('Tipo Vehículo'!$E$10,DE!$D$1:$AI$282,77,0)="","",HLOOKUP('Tipo Vehículo'!$E$10,DE!$D$1:$AI$282,77,0)) -> 
C13: Descuento (%, €/litro) | I13: % | J13: =IFERROR(ROUND((H13/100)*(J11),2),0) -> 0 | K13: =IF(HLOOKUP(CONCATENATE('Tipo Vehículo'!$E$10,"A"),DE!$D$1:$AI$282,78,0)="","",HLOOKUP(CONCATENATE('Tipo Vehículo'!$E$10,"A"),DE!$D$1:$AI$282,78,0)) ->  | L13: =IF(HLOOKUP('Tipo Vehículo'!$E$10,DE!$D$1:$AI$282,78,0)="","",HLOOKUP('Tipo Vehículo'!$E$10,DE!$D$1:$AI$282,78,0)) -> 0
C15: IVA aplicado al carburante (%) (€/litro) | I15: % | J15: =IFERROR(ROUND((H15/100)*(J11-J13)/(1+H15/100),2),0) -> 0 | K15: =IF(HLOOKUP(CONCATENATE('Tipo Vehículo'!$E$10,"A"),DE!$D$1:$AI$282,79,0)="","",HLOOKUP(CONCATENATE('Tipo Vehículo'!$E$10,"A"),DE!$D$1:$AI$282,79,0)) ->  | L15: =IF(HLOOKUP('Tipo Vehículo'!$E$10,DE!$D$1:$AI$282,79,0)="","",HLOOKUP('Tipo Vehículo'!$E$10,DE!$D$1:$AI$282,79,0)) -> 0
C17: Precio carburante sin IVA (€/litro) | J17: =IFERROR(ROUND((J11-J13)/(1+H15/100),2),0) -> 0 | L17: =IF(HLOOKUP('Tipo Vehículo'!$E$10,DE!$D$1:$AI$282,80,0)="","",HLOOKUP('Tipo Vehículo'!$E$10,DE!$D$1:$AI$282,80,0)) -> 0
C19: GASTO TOTAL ANUAL EN CARBURANTE DEL VEHÍCULO (€) | J19: =IFERROR(ROUND(('Características Vehículo'!J25/100)*'Características Vehículo'!J31*J17,0),0) -> 0 | L19: =IF(HLOOKUP('Tipo Vehículo'!$E$10,DE!$D$1:$AI$282,81,0)="","",HLOOKUP('Tipo Vehículo'!$E$10,DE!$D$1:$AI$282,81,0)) -> 0
C21: Carburante de los equipos | L21: Datos estadísticos | M21: =DE!$AJ$2 -> 08/01/2024
C23: Precio de compra de carburante | L23: =IF(HLOOKUP('Tipo Vehículo'!$E$10,DE!$D$1:$AI$282,82,0)="","",HLOOKUP('Tipo Vehículo'!$E$10,DE!$D$1:$AI$282,82,0)) -> 0
J24: 35
C25: Descuento (%, €) | I25: % | J25: =(H25/100)*J23 -> 0 | K25: =IF(HLOOKUP(CONCATENATE('Tipo Vehículo'!$E$10,"A"),DE!$D$1:$AI$282,83,0)="","",HLOOKUP(CONCATENATE('Tipo Vehículo'!$E$10,"A"),DE!$D$1:$AI$282,83,0)) -> 0 | L25: =IF(HLOOKUP('Tipo Vehículo'!$E$10,DE!$D$1:$AI$282,83,0)="","",HLOOKUP('Tipo Vehículo'!$E$10,DE!$D$1:$AI$282,83,0)) -> 0
C27: IVA aplicado al carburante (%) | K27: =IF(HLOOKUP(CONCATENATE('Tipo Vehículo'!$E$10,"A"),DE!$D$1:$AI$282,88,0)="","",HLOOKUP(CONCATENATE('Tipo Vehículo'!$E$10,"A"),DE!$D$1:$AI$282,88,0)) ->  | L27: =IF(HLOOKUP('Tipo Vehículo'!$E$10,DE!$D$1:$AI$282,84,0)="","",HLOOKUP('Tipo Vehículo'!$E$10,DE!$D$1:$AI$282,84,0)) -> 21
C29: IVA aplicado al carburante (€/litro) | J29: =IFERROR(ROUND((J27/100)*(J23-J25)/(1+J27/100),2),0) -> 0 | L29: =IF(HLOOKUP('Tipo Vehículo'!$E$10,DE!$D$1:$AI$282,85,0)="","",HLOOKUP('Tipo Vehículo'!$E$10,DE!$D$1:$AI$282,85,0)) -> 0
C31: Precio carburante sin IVA (€/litro) | J31: =ROUND((J23-J25)/(1+J27/100),2) -> 0 | L31: =IF(HLOOKUP('Tipo Vehículo'!$E$10,DE!$D$1:$AI$282,86,0)="","",HLOOKUP('Tipo Vehículo'!$E$10,DE!$D$1:$AI$282,86,0)) -> 0
C33: Consumo medio de los equipos (litros/hora) | L33: =IF(HLOOKUP('Tipo Vehículo'!$E$10,DE!$D$1:$AI$282,87,0)="","",HLOOKUP('Tipo Vehículo'!$E$10,DE!$D$1:$AI$282,87,0)) -> 0
C35: Horas anuales de utilización de los equipos | L35: =IF(HLOOKUP('Tipo Vehículo'!$E$10,DE!$D$1:$AI$282,88,0)="","",HLOOKUP('Tipo Vehículo'!$E$10,DE!$D$1:$AI$282,88,0)) -> 0
C37: GASTO TOTAL ANUAL EN CARBURANTE EQUIPOS | J37: =J31*J33*J35 -> 0 | L37: =IF(HLOOKUP('Tipo Vehículo'!$E$10,DE!$D$1:$AI$282,89,0)="","",HLOOKUP('Tipo Vehículo'!$E$10,DE!$D$1:$AI$282,89,0)) -> 0
C39: Coste anual de neumáticos | L39: Datos estadísticos | M39: =DE!$AJ$2 -> 08/01/2024
C41: Número de neumáticos direccionables | L41: =IF(HLOOKUP('Tipo Vehículo'!$E$10,DE!$D$1:$AI$282,90,0)="","",HLOOKUP('Tipo Vehículo'!$E$10,DE!$D$1:$AI$282,90,0)) -> 
C43: Número de neumáticos motrices | L43: =IF(HLOOKUP('Tipo Vehículo'!$E$10,DE!$D$1:$AI$282,91,0)="","",HLOOKUP('Tipo Vehículo'!$E$10,DE!$D$1:$AI$282,91,0)) -> 
C45: Número de neumáticos arrastre | L45: =IF(HLOOKUP('Tipo Vehículo'!$E$10,DE!$D$1:$AI$282,92,0)="","",HLOOKUP('Tipo Vehículo'!$E$10,DE!$D$1:$AI$282,92,0)) -> 
C47: Número de neumáticos semirremolque o remolque | L47: =IF(HLOOKUP('Tipo Vehículo'!$E$10,DE!$D$1:$AI$282,93,0)="","",HLOOKUP('Tipo Vehículo'!$E$10,DE!$D$1:$AI$282,93,0)) -> 
C49: Precio sin IVA de un neumático direccionable (€) | L49: =IF(HLOOKUP('Tipo Vehículo'!$E$10,DE!$D$1:$AI$282,94,0)="","",HLOOKUP('Tipo Vehículo'!$E$10,DE!$D$1:$AI$282,94,0)) -> 
C51: Precio sin IVA de un neumático motriz (€) | L51: =IF(HLOOKUP('Tipo Vehículo'!$E$10,DE!$D$1:$AI$282,95,0)="","",HLOOKUP('Tipo Vehículo'!$E$10,DE!$D$1:$AI$282,95,0)) -> 
C53: Precio sin IVA de un neumático arrastre (€) | L53: =IF(HLOOKUP('Tipo Vehículo'!$E$10,DE!$D$1:$AI$282,96,0)="","",HLOOKUP('Tipo Vehículo'!$E$10,DE!$D$1:$AI$282,96,0)) -> 
C55: Precio sin IVA de un neumático remolque-semirremolque (€) | L55: =IF(HLOOKUP('Tipo Vehículo'!$E$10,DE!$D$1:$AI$282,97,0)="","",HLOOKUP('Tipo Vehículo'!$E$10,DE!$D$1:$AI$282,97,0)) -> 
C57: Duración media de un neumático direccionable (km) | L57: =IF(HLOOKUP('Tipo Vehículo'!$E$10,DE!$D$1:$AI$282,98,0)="","",HLOOKUP('Tipo Vehículo'!$E$10,DE!$D$1:$AI$282,98,0)) -> 
C59: Duración media de un neumático motriz (km) | L59: =IF(HLOOKUP('Tipo Vehículo'!$E$10,DE!$D$1:$AI$282,99,0)="","",HLOOKUP('Tipo Vehículo'!$E$10,DE!$D$1:$AI$282,99,0)) -> 
C61: Duración media de un neumático arrastre (km) | L61: =IF(HLOOKUP('Tipo Vehículo'!$E$10,DE!$D$1:$AI$282,100,0)="","",HLOOKUP('Tipo Vehículo'!$E$10,DE!$D$1:$AI$282,100,0)) -> 
C63: Duración media de un neumático remolque-semirremolque (km) | L63: =IF(HLOOKUP('Tipo Vehículo'!$E$10,DE!$D$1:$AI$282,101,0)="","",HLOOKUP('Tipo Vehículo'!$E$10,DE!$D$1:$AI$282,101,0)) -> 
C65: GASTO TOTAL ANUAL EN NEUMÁTICOS (€) | J65: =ROUND(IFERROR((J41*J49*'Características Vehículo'!J25/J57),0)+IFERROR((J43*J51*'Características Vehículo'!J25/J59),0)+IFERROR((J45*J53*'Características Vehículo'!J25/J61),0)+IFERROR((J47*J55*'Características Vehículo'!J25/J63),0),0) -> 0 | L65: =IF(HLOOKUP('Tipo Vehículo'!$E$10,DE!$D$1:$AI$282,102,0)="","",HLOOKUP('Tipo Vehículo'!$E$10,DE!$D$1:$AI$282,102,0)) -> 0
C67: Gastos de mantenimiento | L67: Datos estadísticos | M67: =DE!$AJ$2 -> 08/01/2024
C69: Coste de mantenimiento por km, sin IVA (€/km) | L69: =IF(HLOOKUP('Tipo Vehículo'!$E$10,DE!$D$1:$AI$282,103,0)="","",HLOOKUP('Tipo Vehículo'!$E$10,DE!$D$1:$AI$282,103,0)) -> 
C71: GASTO ANUAL EN MANTENIMIENTO, SIN IVA (€) | J71: ='Características Vehículo'!J25*J69 -> 0 | L71: =IF(HLOOKUP('Tipo Vehículo'!$E$10,DE!$D$1:$AI$282,104,0)="","",HLOOKUP('Tipo Vehículo'!$E$10,DE!$D$1:$AI$282,104,0)) -> 0
C73: Reparaciones | L73: Datos estadísticos | M73: =DE!$AJ$2 -> 08/01/2024
C75: Coste de reparaciones por km, sin IVA (€/km) | L75: =IF(HLOOKUP('Tipo Vehículo'!$E$10,DE!$D$1:$AI$282,105,0)="","",HLOOKUP('Tipo Vehículo'!$E$10,DE!$D$1:$AI$282,105,0)) -> 
C77: GASTO ANUAL EN REPARACIONES, SIN IVA (€) | J77: ='Características Vehículo'!J25*J75 -> 0 | L77: =IF(HLOOKUP('Tipo Vehículo'!$E$10,DE!$D$1:$AI$282,106,0)="","",HLOOKUP('Tipo Vehículo'!$E$10,DE!$D$1:$AI$282,106,0)) -> 0
C79: Peajes | L79: Datos estadísticos | M79: =DE!$AJ$2 -> 08/01/2024
C81: GASTO ANUAL EN PEAJES, SIN IVA (€) | L81: =IF(HLOOKUP('Tipo Vehículo'!$E$10,DE!$D$1:$AI$282,107,0)="","",HLOOKUP('Tipo Vehículo'!$E$10,DE!$D$1:$AI$282,107,0)) -> 
C83: COSTES VARIABLES | J83: =ROUND(J19+J37+J65+J71+J77+J81,0) -> 0 | L83: =IF(HLOOKUP('Tipo Vehículo'!$E$10,DE!$D$1:$AI$282,108,0)="","",HLOOKUP('Tipo Vehículo'!$E$10,DE!$D$1:$AI$282,108,0)) -> 0

Sheet Costes Indirectos
C6: 6. Costes indirectos
C9: Costes Indirectos | J9: Datos estadísticos | K9: =DE!$AJ$2 -> 08/01/2024
C11: Coste anual estructura(gestión, administración,) repercutible a este vehículo | J11: =IF(HLOOKUP('Tipo Vehículo'!$E$10,DE!$D$1:$AI$282,109,0)="","",HLOOKUP('Tipo Vehículo'!$E$10,DE!$D$1:$AI$282,109,0)) -> 0
C13: Coste anual comercialización repercutible a este vehículo | J13: =IF(HLOOKUP('Tipo Vehículo'!$E$10,DE!$D$1:$AI$282,110,0)="","",HLOOKUP('Tipo Vehículo'!$E$10,DE!$D$1:$AI$282,110,0)) -> 0
C15: Otros costes indirectos anuales repercutibles a este vehículo | J15: =IF(HLOOKUP('Tipo Vehículo'!$E$10,DE!$D$1:$AI$282,111,0)="","",HLOOKUP('Tipo Vehículo'!$E$10,DE!$D$1:$AI$282,111,0)) -> 0
C17: COSTES INDIRECTOS | H17: =H11+H13+H15 -> 0 | J17: =IF(HLOOKUP('Tipo Vehículo'!$E$10,DE!$D$1:$AI$282,112,0)="","",HLOOKUP('Tipo Vehículo'!$E$10,DE!$D$1:$AI$282,112,0)) -> 0

Sheet Resultados
C6: Resultados
C9: RESULTADOS COSTES ANUALES | E9: Usuario | H9: Datos estadísticos | I9: =DE!$AJ$2 -> 08/01/2024
E10: Euros | F10: % | H10: Euros | I10: %
C11: COSTES TOTALES | E11: =E12+E21 -> 0 | F11: 100 | H11: =H12+H21 -> 0 | I11: 100
C12: COSTES POR TIEMPO | E12: =IFERROR(SUM(E13:E20),0) -> 0 | F12: =IFERROR(E12*F11/E11,0) -> 0 | H12: =IFERROR(SUM(H13:H20),0) -> 0 | I12: =IFERROR(H12*I11/H11,0) -> 0
C13: Leasing | D13: A | E13: =IFERROR('Costes Adquisición'!H13+0,0)+IFERROR('Costes Adquisición'!H37+0,0)+IFERROR('Costes Adquisición'!H61+0,0)+IFERROR('Costes Adquisición'!H85+0,0) -> 0 | F13: =IFERROR(E13*F$11/E$11,0) -> 0 | G13: A | H13: =IFERROR('Costes Adquisición'!J13+0,0)+IFERROR('Costes Adquisición'!J37+0,0)+IFERROR('Costes Adquisición'!J61+0,0)+IFERROR('Costes Adquisición'!J85+0,0) -> 0 | I13: =IFERROR(H13*I$11/H$11,0) -> 0 | K13: A | L13: =E13 -> 0 | M13: 0 | N13: A | O13: =H13 -> 0 | P13: 0
C14: Amortización | D14: B | E14: =IFERROR(0+'Costes Adquisición'!H29,0)+IFERROR(0+'Costes Adquisición'!H53,0)+IFERROR(0+'Costes Adquisición'!H77,0)+IFERROR(0+'Costes Adquisición'!H101,0) -> 0 | F14: 0 | G14: B | H14: =IFERROR(0+'Costes Adquisición'!J29,0)+IFERROR(0+'Costes Adquisición'!J53,0)+IFERROR(0+'Costes Adquisición'!J77,0)+IFERROR(0+'Costes Adquisición'!J101,0) -> 0 | I14: 0 | K14: B | L14: 0 | M14: 0 | N14: B | O14: 0 | P14: 0
C15: Gastos financieros | D15: C | E15: =IFERROR(0+'Costes Adquisición'!H31,0)+IFERROR(0+'Costes Adquisición'!H55,0)+IFERROR(0+'Costes Adquisición'!H79,0)+IFERROR(0+'Costes Adquisición'!H103,0) -> 0 | F15: 0 | G15: C | H15: =IFERROR(0+'Costes Adquisición'!J31,0)+IFERROR(0+'Costes Adquisición'!J55,0)+IFERROR(0+'Costes Adquisición'!J79,0)+IFERROR(0+'Costes Adquisición'!J101,0) -> 0 | I15: 0 | K15: C | L15: 0 | M15: 0 | N15: C | O15: 0 | P15: 0
C16: Coste total anual del conductor | D16: D | E16: ='Costes Personal'!H11 -> 0 | F16: 0 | G16: D | H16: ='Costes Personal'!J11 ->  | I16: 0 | K16: D | L16: 0 | M16: 0 | N16: D | P16: 0
C17: Dietas y otros complementos retributivos del personal de a bordo | D17: E | E17: ='Costes Personal'!H17+'Costes Personal'!H21 -> 0 | F17: 0 | G17: E | H17: ='Costes Personal'!J17+'Costes Personal'!J21 -> 0 | I17: 0 | K17: E | L17: 0 | M17: 0 | N17: E | O17: 0 | P17: 0
C18: Seguros | D18: F | E18: ='Seguros y Costes Fiscales'!H27 -> 0 | F18: 0 | G18: F | H18: ='Seguros y Costes Fiscales'!J27 -> 0 | I18: 0 | K18: F | L18: 0 | M18: 0 | N18: F | O18: 0 | P18: 0
C19: Costes fiscales | D19: G | E19: ='Seguros y Costes Fiscales'!H47 -> 0 | F19: 0 | G19: G | H19: ='Seguros y Costes Fiscales'!J47 -> 0 | I19: 0 | K19: G | L19: 0 | M19: 0 | N19: G | O19: 0 | P19: 0
C20: Gestión y comercialización | D20: H | E20: ='Costes Indirectos'!H11+'Costes Indirectos'!H13+'Costes Indirectos'!H15 -> 0 | F20: 0 | G20: H | H20: ='Costes Indirectos'!J11+'Costes Indirectos'!J13+'Costes Indirectos'!J15 -> 0 | I20: 0 | K20: H | L20: 0 | M20: 0 | N20: H | O20: 0 | P20: 0
C21: COSTES POR DISTANCIA | E21: =IFERROR(SUM(E22:E25),0) -> 0 | F21: =IFERROR(E21*F20/E20,0) -> 0 | H21: =IFERROR(SUM(H22:H25),0) -> 0 | I21: =IFERROR(H21*I20/H20,0) -> 0 | K21: I | L21: =E22 -> 0 | M21: 0 | N21: I | O21: =H22 -> 0 | P21: 0
C22: Combustible | D22: I | E22: ='Costes Variables'!J19 -> 0 | F22: =IFERROR(E22*F$11/E$11,0) -> 0 | G22: I | H22: ='Costes Variables'!L19 -> 0 | I22: =IFERROR(H22*I$11/H$11,0) -> 0 | K22: J | L22: 0 | M22: 0 | N22: J | O22: 0 | P22: 0
C23: Neumáticos | D23: J | E23: ='Costes Variables'!J65 -> 0 | F23: =IFERROR(E23*F$11/E$11,0) -> 0 | G23: J | H23: ='Costes Variables'!L65 -> 0 | I23: =IFERROR(H23*I$11/H$11,0) -> 0 | K23: K | L23: 0 | M23: 0 | N23: K | O23: 0 | P23: 0
C24: Mantenimiento y reparaciones | D24: K | E24: ='Costes Variables'!J71+'Costes Variables'!J77 -> 0 | F24: =IFERROR(E24*F$11/E$11,0) -> 0 | G24: K | H24: ='Costes Variables'!L71+'Costes Variables'!L77 -> 0 | I24: =IFERROR(H24*I$11/H$11,0) -> 0 | K24: L | L24: 0 | M24: 0 | N24: L | P24: 0
C25: Peajes | D25: L | E25: ='Costes Variables'!J81 -> 0 | F25: =IFERROR(E25*F$11/E$11,0) -> 0 | G25: L | H25: ='Costes Variables'!L81 ->  | I25: =IFERROR(H25*I$11/H$11,0) -> 0
C41: ESTRUCTURA DE COSTES ANUALES | E41: Usuario | H41: Datos estadísticos (2023/1)
E42: Euros | F42: % | H42: Euros | I42: %
C43: Amortización y gastos financieros y leasing | D43: A | E43: =E13+E14+E15 -> 0 | F43: =IFERROR(E43*$F$48/$E$48,0) -> 0 | G43: A | H43: =H13+H14+H15 -> 0 | I43: =IFERROR(H43*$I$48/$H$48,0) -> 0
C44: Personal | D44: B | E44: =E16+E17 -> 0 | F44: =IFERROR(E44*$F$48/$E$48,0) -> 0 | G44: B | H44: =H16+H17 ->  | I44: =IFERROR(H44*$I$48/$H$48,0) -> 0
C45: Seguros, costes fiscales, gestión y comercialización | D45: C | E45: =E18+E19+E20 -> 0 | F45: =IFERROR(E45*$F$48/$E$48,0) -> 0 | G45: C | H45: =H18+H19+H20 -> 0 | I45: =IFERROR(H45*$I$48/$H$48,0) -> 0
C46: Carburante, neumáticos, reparaciones, mantenimiento y peajes | D46: D | E46: =E22+E23+E24+E25 -> 0 | F46: =IFERROR(E46*$F$48/$E$48,0) -> 0 | G46: D | H46: =H22+H23+H24+H25 ->  | I46: =IFERROR(H46*$I$48/$H$48,0) -> 0
C48: COSTES TOTALES | E48: =SUM(E43:E46) -> 0 | F48: 100 | H48: =SUM(H43:H46) ->  | I48: 100
C68: COSTES POR TIEMPO-COSTES POR DISTANCIA | E68: Usuario | H68: Datos estadísticos (2023/1/31)
E70: Euros | F70: % | H70: Euros | I70: %
C72: Costes por tiempo | D72: A | E72: =E12 -> 0 | F72: =IFERROR(E72*$F$48/$E$48,0) -> 0 | G72: A | H72: =H12 -> 0 | I72: =IFERROR(H72*$I$48/$H$48,0) -> 0
C73: Costes por distancia | D73: B | E73: =E21 -> 0 | F73: =IFERROR(E73*$F$48/$E$48,0) -> 0 | G73: B | H73: =H21 -> 0 | I73: =IFERROR(H73*$I$48/$H$48,0) -> 0
C75: COSTES TOTALES | E75: =SUM(E72:E73) -> 0 | F75: 100 | H75: =SUM(H72:H73) -> 0 | I75: 100
C91: COSTES MEDIOS | E91: Usuario | H91: Datos estadísticos (2023/1/31)
C93: Coste total medio (por km) | E93: =IFERROR(E75/'Características Vehículo'!J25,0) -> 0 | H93: =IFERROR(H75/'Características Vehículo'!L25,0) -> 0
C94: Coste total medio (por hora) | E94: =IFERROR(E75/'Características Vehículo'!J33,0) -> 0 | H94: =IFERROR(H75/'Características Vehículo'!L33,0) -> 0
C95: Coste por distancia medio (por km) | E95: =IFERROR(E73/'Características Vehículo'!J25,0) -> 0 | H95: =IFERROR(H73/'Características Vehículo'!L25,0) -> 0
C96: Coste por tiempo medio (por hora) | E96: =IFERROR(E72/'Características Vehículo'!J33,0) -> 0 | H96: =IFERROR(H72/'Características Vehículo'!L33,0) -> 0
C97: Coste medio neumáticos, mantenimiento y reparaciones (por km) | E97: =IFERROR((E23+E24)/'Características Vehículo'!J25,0) -> 0 | H97: =IFERROR((H23+H24)/'Características Vehículo'!L25,0) -> 0

Sheet Coste Servicio
C6: Coste de un servicio
C9: Coste de un servicio
C11: Denominación del servicio
C13: Kilómetros recorridos en este servicio (km) | H13: =H15+H17 -> 0
C15: Kilómetros en carga (km)
C17: Kilómetros en vacío (km)
C19: Consumo medio por kilómetro en este servicio (litros / 100 km)
C21: Horas empleadas en este servicio | H21: =H23+H25+H27 -> 0
C23: Horas en carga
C25: Horas en vacío
H26: 6
C27: Horas en carga, descarga y paralización
C29: Peajes
C31: Coste por distancia de este servicio (€) | H31: =IFERROR(ROUND(H13*(H19/100)*'Costes Variables'!J17+H13*(('Costes Variables'!J65+'Costes Variables'!J71+'Costes Variables'!J77)/'Características Vehículo'!J25)+H29,2),0) -> 0
C33: Coste por tiempo de este servicio (€) | H33: =IFERROR(H21*(('Costes Adquisición'!H105+'Costes Personal'!H23+'Seguros y Costes Fiscales'!H49+'Costes Indirectos'!H17)/'Características Vehículo'!J33),0) -> 0
C35: Otros costes asociados a este servicio (€)
C37: Coste total de este servicio (€) | H37: =IFERROR(H31+H33+H35,0) -> 0
